Department family,Entity,Date,Expense Type,Expense area,Supplier,Transaction number,AP Amount (�)
Department of Health,NHS Sheffield CCG,30/11/2016,C&M-PMS Baseline Adjustment,PRC DELEGATED CO-COMMISSIONING,ABBEY LANE SURGERY,14916020,"2,210.17"
Department of Health,NHS Sheffield CCG,30/11/2016,C&M-PMS Contract Value,PRC DELEGATED CO-COMMISSIONING,ABBEY LANE SURGERY,14916020,"42,109.04"
Department of Health,NHS Sheffield CCG,30/11/2016,C&M-PMS DES UNPLANNED ADMISSIONS,PRC DELEGATED CO-COMMISSIONING,ABBEY LANE SURGERY,14916020,"2,387.00"
Department of Health,NHS Sheffield CCG,30/11/2016,C&M-PMS Out of Hours Opt Outs,PRC DELEGATED CO-COMMISSIONING,ABBEY LANE SURGERY,14916020,-990.71
Department of Health,NHS Sheffield CCG,30/11/2016,C&M-PMS Prem Notional Rent,PRC DELEGATED CO-COMMISSIONING,ABBEY LANE SURGERY,14916020,"2,122.92"
Department of Health,NHS Sheffield CCG,30/11/2016,C&M-PMS Prem Rates,PRC DELEGATED CO-COMMISSIONING,ABBEY LANE SURGERY,14916020,653.4
Department of Health,NHS Sheffield CCG,30/11/2016,C&M-PMS QOF Aspiration,PRC DELEGATED CO-COMMISSIONING,ABBEY LANE SURGERY,14916020,"2,925.38"
Department of Health,NHS Sheffield CCG,30/11/2016,Cont Care-Physical Disab (<65),CHC ADULT FULLY FUNDED,ALPINE HEALTH CARE,14925393,"28,500.64"
Department of Health,NHS Sheffield CCG,30/11/2016,Clinical&Medical-Commercial Sector,PATIENT TRANSPORT,ARRIVA TRANSPORT SOLUTIONS,14885506,"90,845.74"
Department of Health,NHS Sheffield CCG,30/11/2016,External Consultancy Fees,COLLABORATIVE COMMISSIONING,ATTAIN COMMISSIONING SERVICES LTD,15109317,"42,852.64"
Department of Health,NHS Sheffield CCG,30/11/2016,External Consultancy Fees,COLLABORATIVE COMMISSIONING,ATTAIN COMMISSIONING SERVICES LTD,15109418,"50,079.04"
Department of Health,NHS Sheffield CCG,30/11/2016,External Consultancy Fees,COLLABORATIVE COMMISSIONING,ATTAIN COMMISSIONING SERVICES LTD,15109576,"59,506.64"
Department of Health,NHS Sheffield CCG,30/11/2016,C&M-PMS Contract Value,PRC DELEGATED CO-COMMISSIONING,AVENUE MEDICAL CENTRE SHEFFIELD,14916017,"-49,429.79"
Department of Health,NHS Sheffield CCG,30/11/2016,C&M-PMS GP Statutory Levy,PRC DELEGATED CO-COMMISSIONING,AVENUE MEDICAL CENTRE SHEFFIELD,14916017,-225.42
Department of Health,NHS Sheffield CCG,30/11/2016,C&M-PMS Out of Hours Opt Outs,PRC DELEGATED CO-COMMISSIONING,AVENUE MEDICAL CENTRE SHEFFIELD,14916017,-37.44
Department of Health,NHS Sheffield CCG,30/11/2016,C&M-PMS Voluntary Levy,PRC DELEGATED CO-COMMISSIONING,AVENUE MEDICAL CENTRE SHEFFIELD,14916017,-37.57
Department of Health,NHS Sheffield CCG,30/11/2016,C&M-PMS Contract Value,PRC DELEGATED CO-COMMISSIONING,AVENUE MEDICAL CENTRE SHEFFIELD,14916018,"100,774.10"
Department of Health,NHS Sheffield CCG,30/11/2016,C&M-PMS DES Learn Dsblty Hlth Chk,PRC DELEGATED CO-COMMISSIONING,AVENUE MEDICAL CENTRE SHEFFIELD,14916018,580
Department of Health,NHS Sheffield CCG,30/11/2016,C&M-PMS DES Minor Surgery,PRC DELEGATED CO-COMMISSIONING,AVENUE MEDICAL CENTRE SHEFFIELD,14916018,"1,535.00"
Department of Health,NHS Sheffield CCG,30/11/2016,C&M-PMS Out of Hours Opt Outs,PRC DELEGATED CO-COMMISSIONING,AVENUE MEDICAL CENTRE SHEFFIELD,14916018,"-2,515.59"
Department of Health,NHS Sheffield CCG,30/11/2016,C&M-PMS Prem Notional Rent,PRC DELEGATED CO-COMMISSIONING,AVENUE MEDICAL CENTRE SHEFFIELD,14916018,"5,546.67"
Department of Health,NHS Sheffield CCG,30/11/2016,C&M-PMS Prem Rates,PRC DELEGATED CO-COMMISSIONING,AVENUE MEDICAL CENTRE SHEFFIELD,14916018,"2,360.75"
Department of Health,NHS Sheffield CCG,30/11/2016,C&M-PMS Prem Water Rates,PRC DELEGATED CO-COMMISSIONING,AVENUE MEDICAL CENTRE SHEFFIELD,14916018,181.02
Department of Health,NHS Sheffield CCG,30/11/2016,C&M-PMS QOF Aspiration,PRC DELEGATED CO-COMMISSIONING,AVENUE MEDICAL CENTRE SHEFFIELD,14916018,"5,869.92"
Department of Health,NHS Sheffield CCG,30/11/2016,Hcare Srv Rec Fdtn Trust-Contract Baseline,ACUTE COMMISSIONING,BARNSLEY HOSPITAL NHS FOUNDATION TRUST,14922800,"72,863.00"
Department of Health,NHS Sheffield CCG,30/11/2016,C&M-PMS Baseline Adjustment,PRC DELEGATED CO-COMMISSIONING,BARNSLEY ROAD SURGERY,14916022,740.67
Department of Health,NHS Sheffield CCG,30/11/2016,C&M-PMS Contract Value,PRC DELEGATED CO-COMMISSIONING,BARNSLEY ROAD SURGERY,14916022,"41,143.52"
Department of Health,NHS Sheffield CCG,30/11/2016,C&M-PMS DES Learn Dsblty Hlth Chk,PRC DELEGATED CO-COMMISSIONING,BARNSLEY ROAD SURGERY,14916022,464
Department of Health,NHS Sheffield CCG,30/11/2016,C&M-PMS Prem Notional Rent,PRC DELEGATED CO-COMMISSIONING,BARNSLEY ROAD SURGERY,14916022,"2,652.17"
Department of Health,NHS Sheffield CCG,30/11/2016,C&M-PMS Prem Rates,PRC DELEGATED CO-COMMISSIONING,BARNSLEY ROAD SURGERY,14916022,738.1
Department of Health,NHS Sheffield CCG,30/11/2016,C&M-PMS QOF Aspiration,PRC DELEGATED CO-COMMISSIONING,BARNSLEY ROAD SURGERY,14916022,"2,255.94"
Department of Health,NHS Sheffield CCG,30/11/2016,C&M-GMS Cost of Drugs -Prescribing,LOCAL ENHANCED SERVICES,BASLOW ROAD & SHOREHAM STREET SURGERIES,15142474,"5,402.57"
Department of Health,NHS Sheffield CCG,30/11/2016,C&M-GMS DES Minor Surgery,PRC DELEGATED CO-COMMISSIONING,BASLOW ROAD & SHOREHAM STREET SURGERIES,15142474,"4,105.00"
Department of Health,NHS Sheffield CCG,30/11/2016,C&M-GMS Global Sum,PRC DELEGATED CO-COMMISSIONING,BASLOW ROAD & SHOREHAM STREET SURGERIES,15142474,"87,825.33"
Department of Health,NHS Sheffield CCG,30/11/2016,C&M-GMS MPIG Correction Factor,PRC DELEGATED CO-COMMISSIONING,BASLOW ROAD & SHOREHAM STREET SURGERIES,15142474,584.85
Department of Health,NHS Sheffield CCG,30/11/2016,C&M-GMS Prem Notional Rent,PRC DELEGATED CO-COMMISSIONING,BASLOW ROAD & SHOREHAM STREET SURGERIES,15142474,"8,444.59"
Department of Health,NHS Sheffield CCG,30/11/2016,C&M-GMS Prem Rates,PRC DELEGATED CO-COMMISSIONING,BASLOW ROAD & SHOREHAM STREET SURGERIES,15142474,"1,877.48"
Department of Health,NHS Sheffield CCG,30/11/2016,C&M-GMS Prem Water Rates,PRC DELEGATED CO-COMMISSIONING,BASLOW ROAD & SHOREHAM STREET SURGERIES,15142474,89.5
Department of Health,NHS Sheffield CCG,30/11/2016,C&M-GMS Prof Fees Prescribing,PRC DELEGATED CO-COMMISSIONING,BASLOW ROAD & SHOREHAM STREET SURGERIES,15142474,"1,507.72"
Department of Health,NHS Sheffield CCG,30/11/2016,C&M-GMS QOF Aspiration,PRC DELEGATED CO-COMMISSIONING,BASLOW ROAD & SHOREHAM STREET SURGERIES,15142474,"9,331.34"
Department of Health,NHS Sheffield CCG,30/11/2016,ME - GMS GP Prior Year ERs,PRC DELEGATED CO-COMMISSIONING,BASLOW ROAD & SHOREHAM STREET SURGERIES,15142474,381.33
Department of Health,NHS Sheffield CCG,30/11/2016,ME-GMS GP Prior Year EEs,PRC DELEGATED CO-COMMISSIONING,BASLOW ROAD & SHOREHAM STREET SURGERIES,15142474,248
Department of Health,NHS Sheffield CCG,30/11/2016,Cont Care-Physical Disab (65+),CHC ADULT FULLY FUNDED,BC SHEFFIELD LTD,14885521,"32,680.67"
Department of Health,NHS Sheffield CCG,30/11/2016,C&M-PMS Contract Value,PRC DELEGATED CO-COMMISSIONING,BIRLEY HEALTH CENTRE,14916023,"-57,303.08"
Department of Health,NHS Sheffield CCG,30/11/2016,C&M-PMS GP Statutory Levy,PRC DELEGATED CO-COMMISSIONING,BIRLEY HEALTH CENTRE,14916023,-253.44
Department of Health,NHS Sheffield CCG,30/11/2016,C&M-PMS Out of Hours Opt Outs,PRC DELEGATED CO-COMMISSIONING,BIRLEY HEALTH CENTRE,14916023,-70.58
Department of Health,NHS Sheffield CCG,30/11/2016,C&M-PMS Voluntary Levy,PRC DELEGATED CO-COMMISSIONING,BIRLEY HEALTH CENTRE,14916023,-42.24
Department of Health,NHS Sheffield CCG,30/11/2016,ME - PMS TPS Added Years Adj EEs,PRC DELEGATED CO-COMMISSIONING,BIRLEY HEALTH CENTRE,14916023,-434.78
Department of Health,NHS Sheffield CCG,30/11/2016,C&M-PMS Baseline Adjustment,PRC DELEGATED CO-COMMISSIONING,BIRLEY HEALTH CENTRE,14916024,"5,306.08"
Department of Health,NHS Sheffield CCG,30/11/2016,C&M-PMS Contract Value,PRC DELEGATED CO-COMMISSIONING,BIRLEY HEALTH CENTRE,14916024,"115,068.76"
Department of Health,NHS Sheffield CCG,30/11/2016,C&M-PMS DES Minor Surgery,PRC DELEGATED CO-COMMISSIONING,BIRLEY HEALTH CENTRE,14916024,"3,740.00"
Department of Health,NHS Sheffield CCG,30/11/2016,C&M-PMS DES UNPLANNED ADMISSIONS,PRC DELEGATED CO-COMMISSIONING,BIRLEY HEALTH CENTRE,14916024,"6,475.70"
Department of Health,NHS Sheffield CCG,30/11/2016,C&M-PMS Out of Hours Opt Outs,PRC DELEGATED CO-COMMISSIONING,BIRLEY HEALTH CENTRE,14916024,"-2,764.83"
Department of Health,NHS Sheffield CCG,30/11/2016,C&M-PMS Prem Notional Rent,PRC DELEGATED CO-COMMISSIONING,BIRLEY HEALTH CENTRE,14916024,"7,310.42"
Department of Health,NHS Sheffield CCG,30/11/2016,C&M-PMS Prem Rates,PRC DELEGATED CO-COMMISSIONING,BIRLEY HEALTH CENTRE,14916024,"1,180.37"
Department of Health,NHS Sheffield CCG,30/11/2016,C&M-PMS QOF Aspiration,PRC DELEGATED CO-COMMISSIONING,BIRLEY HEALTH CENTRE,14916024,"8,072.81"
Department of Health,NHS Sheffield CCG,30/11/2016,Clinical&Medical-Independent Sector,ACUTE COMMISSIONING,BMI HEALTHCARE COLLECTIONS,14885166,"66,833.36"
Department of Health,NHS Sheffield CCG,30/11/2016,Cont Care-Physical Disab (<65),CHC ADULT FULLY FUNDED,BRANCASTER CARE HOMES LTD,14925027,"27,687.18"
Department of Health,NHS Sheffield CCG,24/11/2016,C&M-GMS Cost of Drugs -Prescribing,LOCAL ENHANCED SERVICES,BROOMHILL SURGERY,15123352,"3,721.04"
Department of Health,NHS Sheffield CCG,24/11/2016,C&M-GMS DES Minor Surgery,PRC DELEGATED CO-COMMISSIONING,BROOMHILL SURGERY,15123352,780
Department of Health,NHS Sheffield CCG,24/11/2016,C&M-GMS Global Sum,PRC DELEGATED CO-COMMISSIONING,BROOMHILL SURGERY,15123352,"56,552.84"
Department of Health,NHS Sheffield CCG,24/11/2016,C&M-GMS MPIG Correction Factor,PRC DELEGATED CO-COMMISSIONING,BROOMHILL SURGERY,15123352,"1,004.01"
Department of Health,NHS Sheffield CCG,24/11/2016,C&M-GMS Prem Cost Rent,PRC DELEGATED CO-COMMISSIONING,BROOMHILL SURGERY,15123352,"3,380.00"
Department of Health,NHS Sheffield CCG,24/11/2016,C&M-GMS Prem Notional Rent,PRC DELEGATED CO-COMMISSIONING,BROOMHILL SURGERY,15123352,"2,541.67"
Department of Health,NHS Sheffield CCG,24/11/2016,C&M-GMS Prem Rates,PRC DELEGATED CO-COMMISSIONING,BROOMHILL SURGERY,15123352,"1,950.73"
Department of Health,NHS Sheffield CCG,24/11/2016,C&M-GMS Prem Water Rates,PRC DELEGATED CO-COMMISSIONING,BROOMHILL SURGERY,15123352,637.26
Department of Health,NHS Sheffield CCG,24/11/2016,C&M-GMS Prof Fees Prescribing,PRC DELEGATED CO-COMMISSIONING,BROOMHILL SURGERY,15123352,535.36
Department of Health,NHS Sheffield CCG,24/11/2016,C&M-GMS QOF Aspiration,PRC DELEGATED CO-COMMISSIONING,BROOMHILL SURGERY,15123352,"5,942.41"
Department of Health,NHS Sheffield CCG,24/11/2016,C&M-GMS Cost of Drugs -Prescribing,LOCAL ENHANCED SERVICES,BUCHANAN ROAD SURGERY,15123348,"6,017.28"
Department of Health,NHS Sheffield CCG,24/11/2016,C&M-GMS DES Minor Surgery,PRC DELEGATED CO-COMMISSIONING,BUCHANAN ROAD SURGERY,15123348,480
Department of Health,NHS Sheffield CCG,24/11/2016,C&M-GMS Global Sum,PRC DELEGATED CO-COMMISSIONING,BUCHANAN ROAD SURGERY,15123348,"33,198.44"
Department of Health,NHS Sheffield CCG,24/11/2016,C&M-GMS MPIG Correction Factor,PRC DELEGATED CO-COMMISSIONING,BUCHANAN ROAD SURGERY,15123348,"2,621.02"
Department of Health,NHS Sheffield CCG,24/11/2016,C&M-GMS Prem Notional Rent,PRC DELEGATED CO-COMMISSIONING,BUCHANAN ROAD SURGERY,15123348,"2,595.83"
Department of Health,NHS Sheffield CCG,24/11/2016,C&M-GMS Prem Rates,PRC DELEGATED CO-COMMISSIONING,BUCHANAN ROAD SURGERY,15123348,944.3
Department of Health,NHS Sheffield CCG,24/11/2016,C&M-GMS Prem Water Rates,PRC DELEGATED CO-COMMISSIONING,BUCHANAN ROAD SURGERY,15123348,261.28
Department of Health,NHS Sheffield CCG,24/11/2016,C&M-GMS Prof Fees Prescribing,PRC DELEGATED CO-COMMISSIONING,BUCHANAN ROAD SURGERY,15123348,"1,755.88"
Department of Health,NHS Sheffield CCG,24/11/2016,C&M-GMS QOF Aspiration,PRC DELEGATED CO-COMMISSIONING,BUCHANAN ROAD SURGERY,15123348,"4,134.47"
Department of Health,NHS Sheffield CCG,30/11/2016,C&M-PMS Contract Value,PRC DELEGATED CO-COMMISSIONING,BURNCROSS SURGERY,14916025,"-110,604.48"
Department of Health,NHS Sheffield CCG,30/11/2016,C&M-PMS GP Statutory Levy,PRC DELEGATED CO-COMMISSIONING,BURNCROSS SURGERY,14916025,-471.63
Department of Health,NHS Sheffield CCG,30/11/2016,C&M-PMS Voluntary Levy,PRC DELEGATED CO-COMMISSIONING,BURNCROSS SURGERY,14916025,-78.61
Department of Health,NHS Sheffield CCG,30/11/2016,C&M-PMS Baseline Adjustment,PRC DELEGATED CO-COMMISSIONING,BURNCROSS SURGERY,14916026,"3,296.83"
Department of Health,NHS Sheffield CCG,30/11/2016,C&M-PMS Contract Value,PRC DELEGATED CO-COMMISSIONING,BURNCROSS SURGERY,14916026,"223,129.35"
Department of Health,NHS Sheffield CCG,30/11/2016,C&M-PMS DES Minor Surgery,PRC DELEGATED CO-COMMISSIONING,BURNCROSS SURGERY,14916026,"3,020.00"
Department of Health,NHS Sheffield CCG,30/11/2016,C&M-PMS Prem Notional Rent,PRC DELEGATED CO-COMMISSIONING,BURNCROSS SURGERY,14916026,"14,058.33"
Department of Health,NHS Sheffield CCG,30/11/2016,C&M-PMS Prem Rates,PRC DELEGATED CO-COMMISSIONING,BURNCROSS SURGERY,14916026,"2,124.67"
Department of Health,NHS Sheffield CCG,30/11/2016,C&M-PMS QOF Aspiration,PRC DELEGATED CO-COMMISSIONING,BURNCROSS SURGERY,14916026,"14,166.16"
Department of Health,NHS Sheffield CCG,30/11/2016,C&M-PMS Contract Value,PRC DELEGATED CO-COMMISSIONING,BURNGREAVE SURGERY,14916027,"-48,407.91"
Department of Health,NHS Sheffield CCG,30/11/2016,C&M-PMS GP Statutory Levy,PRC DELEGATED CO-COMMISSIONING,BURNGREAVE SURGERY,14916027,-196.65
Department of Health,NHS Sheffield CCG,30/11/2016,C&M-PMS Out of Hours Opt Outs,PRC DELEGATED CO-COMMISSIONING,BURNGREAVE SURGERY,14916027,-55.59
Department of Health,NHS Sheffield CCG,30/11/2016,C&M-PMS Voluntary Levy,PRC DELEGATED CO-COMMISSIONING,BURNGREAVE SURGERY,14916027,-32.78
Department of Health,NHS Sheffield CCG,30/11/2016,C&M-PMS Baseline Adjustment,PRC DELEGATED CO-COMMISSIONING,BURNGREAVE SURGERY,14916028,"2,706.25"
Department of Health,NHS Sheffield CCG,30/11/2016,C&M-PMS Contract Value,PRC DELEGATED CO-COMMISSIONING,BURNGREAVE SURGERY,14916028,"98,566.10"
Department of Health,NHS Sheffield CCG,30/11/2016,C&M-PMS DES Minor Surgery,PRC DELEGATED CO-COMMISSIONING,BURNGREAVE SURGERY,14916028,720
Department of Health,NHS Sheffield CCG,30/11/2016,C&M-PMS Out of Hours Opt Outs,PRC DELEGATED CO-COMMISSIONING,BURNGREAVE SURGERY,14916028,"-2,394.78"
Department of Health,NHS Sheffield CCG,30/11/2016,C&M-PMS Prem Notional Rent,PRC DELEGATED CO-COMMISSIONING,BURNGREAVE SURGERY,14916028,"5,916.67"
Department of Health,NHS Sheffield CCG,30/11/2016,C&M-PMS Prem Rates,PRC DELEGATED CO-COMMISSIONING,BURNGREAVE SURGERY,14916028,"2,217.07"
Department of Health,NHS Sheffield CCG,30/11/2016,C&M-PMS Prem Water Rates,PRC DELEGATED CO-COMMISSIONING,BURNGREAVE SURGERY,14916028,417.69
Department of Health,NHS Sheffield CCG,30/11/2016,C&M-PMS QOF Aspiration,PRC DELEGATED CO-COMMISSIONING,BURNGREAVE SURGERY,14916028,"4,652.74"
Department of Health,NHS Sheffield CCG,24/11/2016,C&M-GMS Cost of Drugs -Prescribing,LOCAL ENHANCED SERVICES,CARTERKNOWLE & DORE MEDICAL PRACTICE,15123357,"4,435.62"
Department of Health,NHS Sheffield CCG,24/11/2016,C&M-GMS DES Minor Surgery,PRC DELEGATED CO-COMMISSIONING,CARTERKNOWLE & DORE MEDICAL PRACTICE,15123357,"2,060.00"
Department of Health,NHS Sheffield CCG,24/11/2016,C&M-GMS DES UNPLANNED ADMISSIONS,PRC DELEGATED CO-COMMISSIONING,CARTERKNOWLE & DORE MEDICAL PRACTICE,15123357,"9,574.18"
Department of Health,NHS Sheffield CCG,24/11/2016,C&M-GMS Global Sum,PRC DELEGATED CO-COMMISSIONING,CARTERKNOWLE & DORE MEDICAL PRACTICE,15123357,"75,936.74"
Department of Health,NHS Sheffield CCG,24/11/2016,C&M-GMS MPIG Correction Factor,PRC DELEGATED CO-COMMISSIONING,CARTERKNOWLE & DORE MEDICAL PRACTICE,15123357,"2,989.17"
Department of Health,NHS Sheffield CCG,24/11/2016,C&M-GMS Prem Notional Rent,PRC DELEGATED CO-COMMISSIONING,CARTERKNOWLE & DORE MEDICAL PRACTICE,15123357,"7,538.34"
Department of Health,NHS Sheffield CCG,24/11/2016,C&M-GMS Prof Fees Prescribing,PRC DELEGATED CO-COMMISSIONING,CARTERKNOWLE & DORE MEDICAL PRACTICE,15123357,602.56
Department of Health,NHS Sheffield CCG,24/11/2016,C&M-GMS QOF Aspiration,PRC DELEGATED CO-COMMISSIONING,CARTERKNOWLE & DORE MEDICAL PRACTICE,15123357,"8,761.41"
Department of Health,NHS Sheffield CCG,24/11/2016,C&M-GMS Cost of Drugs -Prescribing,LOCAL ENHANCED SERVICES,CHARNOCK HEALTH PRIMARY CARE CENTRE,15123354,"9,428.08"
Department of Health,NHS Sheffield CCG,24/11/2016,C&M-GMS DES Minor Surgery,PRC DELEGATED CO-COMMISSIONING,CHARNOCK HEALTH PRIMARY CARE CENTRE,15123354,940
Department of Health,NHS Sheffield CCG,24/11/2016,C&M-GMS DES UNPLANNED ADMISSIONS,PRC DELEGATED CO-COMMISSIONING,CHARNOCK HEALTH PRIMARY CARE CENTRE,15123354,"4,001.69"
Department of Health,NHS Sheffield CCG,24/11/2016,C&M-GMS Global Sum,PRC DELEGATED CO-COMMISSIONING,CHARNOCK HEALTH PRIMARY CARE CENTRE,15123354,"35,507.00"
Department of Health,NHS Sheffield CCG,24/11/2016,C&M-GMS MPIG Correction Factor,PRC DELEGATED CO-COMMISSIONING,CHARNOCK HEALTH PRIMARY CARE CENTRE,15123354,826.5
Department of Health,NHS Sheffield CCG,24/11/2016,C&M-GMS Prem Notional Rent,PRC DELEGATED CO-COMMISSIONING,CHARNOCK HEALTH PRIMARY CARE CENTRE,15123354,305
Department of Health,NHS Sheffield CCG,24/11/2016,C&M-GMS Prof Fees Prescribing,PRC DELEGATED CO-COMMISSIONING,CHARNOCK HEALTH PRIMARY CARE CENTRE,15123354,"2,543.91"
Department of Health,NHS Sheffield CCG,24/11/2016,C&M-GMS QOF Aspiration,PRC DELEGATED CO-COMMISSIONING,CHARNOCK HEALTH PRIMARY CARE CENTRE,15123354,"4,240.44"
Department of Health,NHS Sheffield CCG,30/11/2016,Hcare Srv Rec Fdtn Trust-Contract Baseline,ACUTE COMMISSIONING,CHESTERFIELD ROYAL HOSPITAL NHS FOUNDATION TRUST,14987932,"232,297.00"
Department of Health,NHS Sheffield CCG,30/11/2016,Hcare Srv Rec Fdtn Trust-Contract Baseline,ACUTE COMMISSIONING,CHESTERFIELD ROYAL HOSPITAL NHS FOUNDATION TRUST,15109719,"49,606.32"
Department of Health,NHS Sheffield CCG,30/11/2016,Clinical&Medical-Independent Sector,ACUTE COMMISSIONING,CLAREMONT HOSPITAL,14886491,"85,569.00"
Department of Health,NHS Sheffield CCG,30/11/2016,Cont Care-Funded Nursing Care Allow,FUNDED NURSING CARE,COUNTRY COURT CARE LTD,15003074,"29,665.05"
Department of Health,NHS Sheffield CCG,24/11/2016,C&M-GMS Cost of Drugs -Prescribing,LOCAL ENHANCED SERVICES,CROOKES PRACTICE,15123361,"3,188.24"
Department of Health,NHS Sheffield CCG,24/11/2016,C&M-GMS DES Minor Surgery,PRC DELEGATED CO-COMMISSIONING,CROOKES PRACTICE,15123361,85
Department of Health,NHS Sheffield CCG,24/11/2016,C&M-GMS Global Sum,PRC DELEGATED CO-COMMISSIONING,CROOKES PRACTICE,15123361,"43,283.09"
Department of Health,NHS Sheffield CCG,24/11/2016,C&M-GMS MPIG Correction Factor,PRC DELEGATED CO-COMMISSIONING,CROOKES PRACTICE,15123361,"3,091.85"
Department of Health,NHS Sheffield CCG,24/11/2016,C&M-GMS Prem Notional Rent,PRC DELEGATED CO-COMMISSIONING,CROOKES PRACTICE,15123361,"3,752.42"
Department of Health,NHS Sheffield CCG,24/11/2016,C&M-GMS Prem Rates,PRC DELEGATED CO-COMMISSIONING,CROOKES PRACTICE,15123361,"1,615.25"
Department of Health,NHS Sheffield CCG,24/11/2016,C&M-GMS Prof Fees Prescribing,PRC DELEGATED CO-COMMISSIONING,CROOKES PRACTICE,15123361,889.28
Department of Health,NHS Sheffield CCG,24/11/2016,C&M-GMS QOF Aspiration,PRC DELEGATED CO-COMMISSIONING,CROOKES PRACTICE,15123361,"4,263.95"
Department of Health,NHS Sheffield CCG,30/11/2016,C&M-PMS Contract Value,PRC DELEGATED CO-COMMISSIONING,DEEPCAR MEDICAL CENTRE,14916031,"-33,509.60"
Department of Health,NHS Sheffield CCG,30/11/2016,C&M-PMS GP Statutory Levy,PRC DELEGATED CO-COMMISSIONING,DEEPCAR MEDICAL CENTRE,14916031,-153.6
Department of Health,NHS Sheffield CCG,30/11/2016,C&M-PMS Out of Hours Opt Outs,PRC DELEGATED CO-COMMISSIONING,DEEPCAR MEDICAL CENTRE,14916031,-46.16
Department of Health,NHS Sheffield CCG,30/11/2016,C&M-PMS Voluntary Levy,PRC DELEGATED CO-COMMISSIONING,DEEPCAR MEDICAL CENTRE,14916031,-25.6
Department of Health,NHS Sheffield CCG,30/11/2016,C&M-PMS Baseline Adjustment,PRC DELEGATED CO-COMMISSIONING,DEEPCAR MEDICAL CENTRE,14916032,612.25
Department of Health,NHS Sheffield CCG,30/11/2016,C&M-PMS Contract Value,PRC DELEGATED CO-COMMISSIONING,DEEPCAR MEDICAL CENTRE,14916032,"70,016.23"
Department of Health,NHS Sheffield CCG,30/11/2016,C&M-PMS DES Minor Surgery,PRC DELEGATED CO-COMMISSIONING,DEEPCAR MEDICAL CENTRE,14916032,80
Department of Health,NHS Sheffield CCG,30/11/2016,C&M-PMS DES UNPLANNED ADMISSIONS,PRC DELEGATED CO-COMMISSIONING,DEEPCAR MEDICAL CENTRE,14916032,"3,910.06"
Department of Health,NHS Sheffield CCG,30/11/2016,C&M-PMS Out of Hours Opt Outs,PRC DELEGATED CO-COMMISSIONING,DEEPCAR MEDICAL CENTRE,14916032,"-1,742.78"
Department of Health,NHS Sheffield CCG,30/11/2016,C&M-PMS Prem Healthcentre Rent,PRC DELEGATED CO-COMMISSIONING,DEEPCAR MEDICAL CENTRE,14916032,"26,323.25"
Department of Health,NHS Sheffield CCG,30/11/2016,C&M-PMS QOF Aspiration,PRC DELEGATED CO-COMMISSIONING,DEEPCAR MEDICAL CENTRE,14916032,"4,038.41"
Department of Health,NHS Sheffield CCG,24/11/2016,C&M-GMS Cost of Drugs -Prescribing,LOCAL ENHANCED SERVICES,DEVONSHIRE GREEN MEDICAL CENTRE,15123366,"1,583.83"
Department of Health,NHS Sheffield CCG,24/11/2016,C&M-GMS DES Minor Surgery,PRC DELEGATED CO-COMMISSIONING,DEVONSHIRE GREEN MEDICAL CENTRE,15123366,80
Department of Health,NHS Sheffield CCG,24/11/2016,C&M-GMS Global Sum,PRC DELEGATED CO-COMMISSIONING,DEVONSHIRE GREEN MEDICAL CENTRE,15123366,"41,932.75"
Department of Health,NHS Sheffield CCG,24/11/2016,C&M-GMS MPIG Correction Factor,PRC DELEGATED CO-COMMISSIONING,DEVONSHIRE GREEN MEDICAL CENTRE,15123366,"6,462.40"
Department of Health,NHS Sheffield CCG,24/11/2016,C&M-GMS Prem Notional Rent,PRC DELEGATED CO-COMMISSIONING,DEVONSHIRE GREEN MEDICAL CENTRE,15123366,"5,987.50"
Department of Health,NHS Sheffield CCG,24/11/2016,C&M-GMS Prem Rates,PRC DELEGATED CO-COMMISSIONING,DEVONSHIRE GREEN MEDICAL CENTRE,15123366,363
Department of Health,NHS Sheffield CCG,24/11/2016,C&M-GMS Prof Fees Prescribing,PRC DELEGATED CO-COMMISSIONING,DEVONSHIRE GREEN MEDICAL CENTRE,15123366,403.2
Department of Health,NHS Sheffield CCG,24/11/2016,C&M-GMS QOF Aspiration,PRC DELEGATED CO-COMMISSIONING,DEVONSHIRE GREEN MEDICAL CENTRE,15123366,"4,722.03"
Department of Health,NHS Sheffield CCG,30/11/2016,Hcare Srv Rec Fdtn Trust-Contract Baseline,ACUTE COMMISSIONING,DONCASTER AND BASSETLAW HOSPITALS NHS FOUNDATION TRUST,14832389,"28,477.00"
Department of Health,NHS Sheffield CCG,30/11/2016,C&M-PMS Contract Value,PRC DELEGATED CO-COMMISSIONING,DOVERCOURT SURGERY,14916033,"-63,529.08"
Department of Health,NHS Sheffield CCG,30/11/2016,C&M-PMS GP Statutory Levy,PRC DELEGATED CO-COMMISSIONING,DOVERCOURT SURGERY,14916033,-243.51
Department of Health,NHS Sheffield CCG,30/11/2016,C&M-PMS Out of Hours Opt Outs,PRC DELEGATED CO-COMMISSIONING,DOVERCOURT SURGERY,14916033,-136.76
Department of Health,NHS Sheffield CCG,30/11/2016,C&M-PMS Voluntary Levy,PRC DELEGATED CO-COMMISSIONING,DOVERCOURT SURGERY,14916033,-40.59
Department of Health,NHS Sheffield CCG,30/11/2016,C&M-PMS Baseline Adjustment,PRC DELEGATED CO-COMMISSIONING,DOVERCOURT SURGERY,14916034,"7,232.08"
Department of Health,NHS Sheffield CCG,30/11/2016,C&M-PMS Contract Value,PRC DELEGATED CO-COMMISSIONING,DOVERCOURT SURGERY,14916034,"127,240.20"
Department of Health,NHS Sheffield CCG,30/11/2016,C&M-PMS DES Minor Surgery,PRC DELEGATED CO-COMMISSIONING,DOVERCOURT SURGERY,14916034,"1,720.00"
Department of Health,NHS Sheffield CCG,30/11/2016,C&M-PMS Out of Hours Opt Outs,PRC DELEGATED CO-COMMISSIONING,DOVERCOURT SURGERY,14916034,"-2,994.08"
Department of Health,NHS Sheffield CCG,30/11/2016,C&M-PMS PCO Locum Adop/Pat/Mat,PRC DELEGATED CO-COMMISSIONING,DOVERCOURT SURGERY,14916034,"5,395.23"
Department of Health,NHS Sheffield CCG,30/11/2016,C&M-PMS Prem Actual Rent,PRC DELEGATED CO-COMMISSIONING,DOVERCOURT SURGERY,14916034,"12,400.00"
Department of Health,NHS Sheffield CCG,30/11/2016,C&M-PMS Prem Notional Rent,PRC DELEGATED CO-COMMISSIONING,DOVERCOURT SURGERY,14916034,"1,708.34"
Department of Health,NHS Sheffield CCG,30/11/2016,C&M-PMS QOF Aspiration,PRC DELEGATED CO-COMMISSIONING,DOVERCOURT SURGERY,14916034,"7,095.60"
Department of Health,NHS Sheffield CCG,30/11/2016,C&M-PMS Contract Value,PRC DELEGATED CO-COMMISSIONING,DR MEHROTRA & PARTNER,14916035,"-26,258.92"
Department of Health,NHS Sheffield CCG,30/11/2016,C&M-PMS GP Statutory Levy,PRC DELEGATED CO-COMMISSIONING,DR MEHROTRA & PARTNER,14916035,-102.57
Department of Health,NHS Sheffield CCG,30/11/2016,C&M-PMS Voluntary Levy,PRC DELEGATED CO-COMMISSIONING,DR MEHROTRA & PARTNER,14916035,-17.1
Department of Health,NHS Sheffield CCG,30/11/2016,C&M-PMS Baseline Adjustment,PRC DELEGATED CO-COMMISSIONING,DR MEHROTRA & PARTNER,14916036,"1,771.75"
Department of Health,NHS Sheffield CCG,30/11/2016,C&M-PMS Contract Value,PRC DELEGATED CO-COMMISSIONING,DR MEHROTRA & PARTNER,14916036,"51,946.42"
Department of Health,NHS Sheffield CCG,30/11/2016,C&M-PMS Prem Notional Rent,PRC DELEGATED CO-COMMISSIONING,DR MEHROTRA & PARTNER,14916036,"5,157.33"
Department of Health,NHS Sheffield CCG,30/11/2016,C&M-PMS Prem Rates,PRC DELEGATED CO-COMMISSIONING,DR MEHROTRA & PARTNER,14916036,"1,234.20"
Department of Health,NHS Sheffield CCG,30/11/2016,C&M-PMS QOF Aspiration,PRC DELEGATED CO-COMMISSIONING,DR MEHROTRA & PARTNER,14916036,"3,080.24"
Department of Health,NHS Sheffield CCG,30/11/2016,C&M-PMS Contract Value,PRC DELEGATED CO-COMMISSIONING,DR MILNER & PARTNERS,14916037,"-70,473.34"
Department of Health,NHS Sheffield CCG,30/11/2016,C&M-PMS GP Statutory Levy,PRC DELEGATED CO-COMMISSIONING,DR MILNER & PARTNERS,14916037,-315.36
Department of Health,NHS Sheffield CCG,30/11/2016,C&M-PMS Out of Hours Opt Outs,PRC DELEGATED CO-COMMISSIONING,DR MILNER & PARTNERS,14916037,-53.67
Department of Health,NHS Sheffield CCG,30/11/2016,C&M-PMS Voluntary Levy,PRC DELEGATED CO-COMMISSIONING,DR MILNER & PARTNERS,14916037,-52.56
Department of Health,NHS Sheffield CCG,30/11/2016,ME - PMS TPS Added Years Adj EEs,PRC DELEGATED CO-COMMISSIONING,DR MILNER & PARTNERS,14916037,-253.13
Department of Health,NHS Sheffield CCG,30/11/2016,C&M-PMS Baseline Adjustment,PRC DELEGATED CO-COMMISSIONING,DR MILNER & PARTNERS,14916038,"9,162.92"
Department of Health,NHS Sheffield CCG,30/11/2016,C&M-PMS Contract Value,PRC DELEGATED CO-COMMISSIONING,DR MILNER & PARTNERS,14916038,"138,003.55"
Department of Health,NHS Sheffield CCG,30/11/2016,C&M-PMS DES Learn Dsblty Hlth Chk,PRC DELEGATED CO-COMMISSIONING,DR MILNER & PARTNERS,14916038,812
Department of Health,NHS Sheffield CCG,30/11/2016,C&M-PMS DES Minor Surgery,PRC DELEGATED CO-COMMISSIONING,DR MILNER & PARTNERS,14916038,"1,995.00"
Department of Health,NHS Sheffield CCG,30/11/2016,C&M-PMS DES UNPLANNED ADMISSIONS,PRC DELEGATED CO-COMMISSIONING,DR MILNER & PARTNERS,14916038,"8,074.22"
Department of Health,NHS Sheffield CCG,30/11/2016,C&M-PMS Out of Hours Opt Outs,PRC DELEGATED CO-COMMISSIONING,DR MILNER & PARTNERS,14916038,"-3,256.58"
Department of Health,NHS Sheffield CCG,30/11/2016,C&M-PMS PCO Locum Adop/Pat/Mat,PRC DELEGATED CO-COMMISSIONING,DR MILNER & PARTNERS,14916038,"6,859.50"
Department of Health,NHS Sheffield CCG,30/11/2016,C&M-PMS Prem Actual Rent,PRC DELEGATED CO-COMMISSIONING,DR MILNER & PARTNERS,14916038,"11,382.00"
Department of Health,NHS Sheffield CCG,30/11/2016,C&M-PMS Prem Notional Rent,PRC DELEGATED CO-COMMISSIONING,DR MILNER & PARTNERS,14916038,"4,221.58"
Department of Health,NHS Sheffield CCG,30/11/2016,C&M-PMS Prem Rates,PRC DELEGATED CO-COMMISSIONING,DR MILNER & PARTNERS,14916038,"1,702.08"
Department of Health,NHS Sheffield CCG,30/11/2016,C&M-PMS QOF Aspiration,PRC DELEGATED CO-COMMISSIONING,DR MILNER & PARTNERS,14916038,"6,732.84"
Department of Health,NHS Sheffield CCG,24/11/2016,C&M-GMS Cost of Drugs -Prescribing,LOCAL ENHANCED SERVICES,DUKE MEDICAL CENTRE,15123373,"4,824.35"
Department of Health,NHS Sheffield CCG,24/11/2016,C&M-GMS DES Minor Surgery,PRC DELEGATED CO-COMMISSIONING,DUKE MEDICAL CENTRE,15123373,920
Department of Health,NHS Sheffield CCG,24/11/2016,C&M-GMS Global Sum,PRC DELEGATED CO-COMMISSIONING,DUKE MEDICAL CENTRE,15123373,"48,841.84"
Department of Health,NHS Sheffield CCG,24/11/2016,C&M-GMS MPIG Correction Factor,PRC DELEGATED CO-COMMISSIONING,DUKE MEDICAL CENTRE,15123373,"1,225.02"
Department of Health,NHS Sheffield CCG,24/11/2016,C&M-GMS Prem Notional Rent,PRC DELEGATED CO-COMMISSIONING,DUKE MEDICAL CENTRE,15123373,"6,233.25"
Department of Health,NHS Sheffield CCG,24/11/2016,C&M-GMS Prem Rates,PRC DELEGATED CO-COMMISSIONING,DUKE MEDICAL CENTRE,15123373,834.9
Department of Health,NHS Sheffield CCG,24/11/2016,C&M-GMS Prem Water Rates,PRC DELEGATED CO-COMMISSIONING,DUKE MEDICAL CENTRE,15123373,285.11
Department of Health,NHS Sheffield CCG,24/11/2016,C&M-GMS Prof Fees Prescribing,PRC DELEGATED CO-COMMISSIONING,DUKE MEDICAL CENTRE,15123373,"1,442.56"
Department of Health,NHS Sheffield CCG,24/11/2016,C&M-GMS QOF Aspiration,PRC DELEGATED CO-COMMISSIONING,DUKE MEDICAL CENTRE,15123373,"4,848.26"
Department of Health,NHS Sheffield CCG,30/11/2016,C&M-PMS Baseline Adjustment,PRC DELEGATED CO-COMMISSIONING,DUNNINC ROAD SURGERY,14916040,"2,437.42"
Department of Health,NHS Sheffield CCG,30/11/2016,C&M-PMS Contract Value,PRC DELEGATED CO-COMMISSIONING,DUNNINC ROAD SURGERY,14916040,"45,940.38"
Department of Health,NHS Sheffield CCG,30/11/2016,C&M-PMS DES Minor Surgery,PRC DELEGATED CO-COMMISSIONING,DUNNINC ROAD SURGERY,14916040,"2,185.00"
Department of Health,NHS Sheffield CCG,30/11/2016,C&M-PMS Prem Notional Rent,PRC DELEGATED CO-COMMISSIONING,DUNNINC ROAD SURGERY,14916040,"1,604.17"
Department of Health,NHS Sheffield CCG,30/11/2016,C&M-PMS QOF Aspiration,PRC DELEGATED CO-COMMISSIONING,DUNNINC ROAD SURGERY,14916040,"2,305.31"
Department of Health,NHS Sheffield CCG,30/11/2016,C&M-PMS Contract Value,PRC DELEGATED CO-COMMISSIONING,DYKES HALL MEDICAL CENTRE,14916041,"-60,916.03"
Department of Health,NHS Sheffield CCG,30/11/2016,C&M-PMS GP Statutory Levy,PRC DELEGATED CO-COMMISSIONING,DYKES HALL MEDICAL CENTRE,14916041,-291.99
Department of Health,NHS Sheffield CCG,30/11/2016,C&M-PMS Out of Hours Opt Outs,PRC DELEGATED CO-COMMISSIONING,DYKES HALL MEDICAL CENTRE,14916041,-77.68
Department of Health,NHS Sheffield CCG,30/11/2016,C&M-PMS Voluntary Levy,PRC DELEGATED CO-COMMISSIONING,DYKES HALL MEDICAL CENTRE,14916041,-48.67
Department of Health,NHS Sheffield CCG,30/11/2016,ME - PMS TPS Added Years Adj EEs,PRC DELEGATED CO-COMMISSIONING,DYKES HALL MEDICAL CENTRE,14916041,-273.42
Department of Health,NHS Sheffield CCG,30/11/2016,C&M-PMS Baseline Adjustment,PRC DELEGATED CO-COMMISSIONING,DYKES HALL MEDICAL CENTRE,14916042,399.42
Department of Health,NHS Sheffield CCG,30/11/2016,C&M-PMS Contract Value,PRC DELEGATED CO-COMMISSIONING,DYKES HALL MEDICAL CENTRE,14916042,"127,954.45"
Department of Health,NHS Sheffield CCG,30/11/2016,C&M-PMS DES Minor Surgery,PRC DELEGATED CO-COMMISSIONING,DYKES HALL MEDICAL CENTRE,14916042,600
Department of Health,NHS Sheffield CCG,30/11/2016,C&M-PMS Out of Hours Opt Outs,PRC DELEGATED CO-COMMISSIONING,DYKES HALL MEDICAL CENTRE,14916042,"-3,202.13"
Department of Health,NHS Sheffield CCG,30/11/2016,C&M-PMS Prem Notional Rent,PRC DELEGATED CO-COMMISSIONING,DYKES HALL MEDICAL CENTRE,14916042,"5,298.97"
Department of Health,NHS Sheffield CCG,30/11/2016,C&M-PMS QOF Aspiration,PRC DELEGATED CO-COMMISSIONING,DYKES HALL MEDICAL CENTRE,14916042,"8,049.09"
Department of Health,NHS Sheffield CCG,30/11/2016,C&M-PMS Contract Value,PRC DELEGATED CO-COMMISSIONING,EAST BANK MEDICAL CENTRE,14916043,"-41,466.23"
Department of Health,NHS Sheffield CCG,30/11/2016,C&M-PMS GP Statutory Levy,PRC DELEGATED CO-COMMISSIONING,EAST BANK MEDICAL CENTRE,14916043,-164.37
Department of Health,NHS Sheffield CCG,30/11/2016,C&M-PMS Out of Hours Opt Outs,PRC DELEGATED CO-COMMISSIONING,EAST BANK MEDICAL CENTRE,14916043,-35.6
Department of Health,NHS Sheffield CCG,30/11/2016,C&M-PMS Voluntary Levy,PRC DELEGATED CO-COMMISSIONING,EAST BANK MEDICAL CENTRE,14916043,-27.4
Department of Health,NHS Sheffield CCG,30/11/2016,C&M-PMS Baseline Adjustment,PRC DELEGATED CO-COMMISSIONING,EAST BANK MEDICAL CENTRE,14936023,"3,176.25"
Department of Health,NHS Sheffield CCG,30/11/2016,C&M-PMS Contract Value,PRC DELEGATED CO-COMMISSIONING,EAST BANK MEDICAL CENTRE,14936023,"83,664.15"
Department of Health,NHS Sheffield CCG,30/11/2016,C&M-PMS DES Minor Surgery,PRC DELEGATED CO-COMMISSIONING,EAST BANK MEDICAL CENTRE,14936023,415
Department of Health,NHS Sheffield CCG,30/11/2016,C&M-PMS Out of Hours Opt Outs,PRC DELEGATED CO-COMMISSIONING,EAST BANK MEDICAL CENTRE,14936023,"-2,036.66"
Department of Health,NHS Sheffield CCG,30/11/2016,C&M-PMS Prem Notional Rent,PRC DELEGATED CO-COMMISSIONING,EAST BANK MEDICAL CENTRE,14936023,"10,466.67"
Department of Health,NHS Sheffield CCG,30/11/2016,C&M-PMS Prem Rates,PRC DELEGATED CO-COMMISSIONING,EAST BANK MEDICAL CENTRE,14936023,"5,467.00"
Department of Health,NHS Sheffield CCG,30/11/2016,C&M-PMS QOF Aspiration,PRC DELEGATED CO-COMMISSIONING,EAST BANK MEDICAL CENTRE,14936023,"4,604.77"
Department of Health,NHS Sheffield CCG,30/11/2016,ME - PMS GP Prior Year ERs,PRC DELEGATED CO-COMMISSIONING,EAST BANK MEDICAL CENTRE,14936023,"3,317.04"
Department of Health,NHS Sheffield CCG,30/11/2016,ME-PMS GP Prior Year EEs,PRC DELEGATED CO-COMMISSIONING,EAST BANK MEDICAL CENTRE,14936023,"3,867.40"
Department of Health,NHS Sheffield CCG,24/11/2016,C&M-GMS Cost of Drugs -Prescribing,LOCAL ENHANCED SERVICES,ECCLESFIELD GROUP PRACTICE,15123369,"3,460.30"
Department of Health,NHS Sheffield CCG,24/11/2016,C&M-GMS DES Learn Dsblty Hlth Chk,PRC DELEGATED CO-COMMISSIONING,ECCLESFIELD GROUP PRACTICE,15123369,928
Department of Health,NHS Sheffield CCG,24/11/2016,C&M-GMS DES Minor Surgery,PRC DELEGATED CO-COMMISSIONING,ECCLESFIELD GROUP PRACTICE,15123369,800
Department of Health,NHS Sheffield CCG,24/11/2016,C&M-GMS DES UNPLANNED ADMISSIONS,PRC DELEGATED CO-COMMISSIONING,ECCLESFIELD GROUP PRACTICE,15123369,"6,006.77"
Department of Health,NHS Sheffield CCG,24/11/2016,C&M-GMS Global Sum,PRC DELEGATED CO-COMMISSIONING,ECCLESFIELD GROUP PRACTICE,15123369,"58,668.09"
Department of Health,NHS Sheffield CCG,24/11/2016,C&M-GMS PCO Locum Adop/Pat/Mat,PRC DELEGATED CO-COMMISSIONING,ECCLESFIELD GROUP PRACTICE,15123369,"3,853.73"
Department of Health,NHS Sheffield CCG,24/11/2016,C&M-GMS Prem Notional Rent,PRC DELEGATED CO-COMMISSIONING,ECCLESFIELD GROUP PRACTICE,15123369,"6,545.00"
Department of Health,NHS Sheffield CCG,24/11/2016,C&M-GMS Prem Rates,PRC DELEGATED CO-COMMISSIONING,ECCLESFIELD GROUP PRACTICE,15123369,"2,723.18"
Department of Health,NHS Sheffield CCG,24/11/2016,C&M-GMS Prof Fees Prescribing,PRC DELEGATED CO-COMMISSIONING,ECCLESFIELD GROUP PRACTICE,15123369,593.6
Department of Health,NHS Sheffield CCG,24/11/2016,C&M-GMS QOF Aspiration,PRC DELEGATED CO-COMMISSIONING,ECCLESFIELD GROUP PRACTICE,15123369,"9,456.61"
Department of Health,NHS Sheffield CCG,30/11/2016,C&M-GMS LES Primary Care Offer,LOCAL ENHANCED SERVICES,ECCLESFIELD GROUP PRACTICE,15174646,"33,745.00"
Department of Health,NHS Sheffield CCG,24/11/2016,C&M-GMS Cost of Drugs -Prescribing,LOCAL ENHANCED SERVICES,ELM LANE SURGERY,15123371,"1,073.00"
Department of Health,NHS Sheffield CCG,24/11/2016,C&M-GMS DES Minor Surgery,PRC DELEGATED CO-COMMISSIONING,ELM LANE SURGERY,15123371,40
Department of Health,NHS Sheffield CCG,24/11/2016,C&M-GMS DES UNPLANNED ADMISSIONS,PRC DELEGATED CO-COMMISSIONING,ELM LANE SURGERY,15123371,"6,910.68"
Department of Health,NHS Sheffield CCG,24/11/2016,C&M-GMS Global Sum,PRC DELEGATED CO-COMMISSIONING,ELM LANE SURGERY,15123371,"35,586.31"
Department of Health,NHS Sheffield CCG,24/11/2016,C&M-GMS MPIG Correction Factor,PRC DELEGATED CO-COMMISSIONING,ELM LANE SURGERY,15123371,"1,677.05"
Department of Health,NHS Sheffield CCG,24/11/2016,C&M-GMS Prem Notional Rent,PRC DELEGATED CO-COMMISSIONING,ELM LANE SURGERY,15123371,"4,951.92"
Department of Health,NHS Sheffield CCG,24/11/2016,C&M-GMS Prof Fees Prescribing,PRC DELEGATED CO-COMMISSIONING,ELM LANE SURGERY,15123371,136.64
Department of Health,NHS Sheffield CCG,24/11/2016,C&M-GMS QOF Aspiration,PRC DELEGATED CO-COMMISSIONING,ELM LANE SURGERY,15123371,"4,440.21"
Department of Health,NHS Sheffield CCG,30/11/2016,Cont Care-Physical Disab (<65),CHC ADULT FULLY FUNDED,FAIRWINDS HEALTH CARE LTD,14925080,"40,089.60"
Department of Health,NHS Sheffield CCG,30/11/2016,C&M-PMS Baseline Adjustment,PRC DELEGATED CO-COMMISSIONING,FALKLAND HOUSE,14916047,"2,511.83"
Department of Health,NHS Sheffield CCG,30/11/2016,C&M-PMS Contract Value,PRC DELEGATED CO-COMMISSIONING,FALKLAND HOUSE,14916047,"46,135.62"
Department of Health,NHS Sheffield CCG,30/11/2016,C&M-PMS DES Minor Surgery,PRC DELEGATED CO-COMMISSIONING,FALKLAND HOUSE,14916047,160
Department of Health,NHS Sheffield CCG,30/11/2016,C&M-PMS Out of Hours Opt Outs,PRC DELEGATED CO-COMMISSIONING,FALKLAND HOUSE,14916047,-960.75
Department of Health,NHS Sheffield CCG,30/11/2016,C&M-PMS Prem Notional Rent,PRC DELEGATED CO-COMMISSIONING,FALKLAND HOUSE,14916047,"1,802.08"
Department of Health,NHS Sheffield CCG,30/11/2016,C&M-PMS Prem Rates,PRC DELEGATED CO-COMMISSIONING,FALKLAND HOUSE,14916047,665.5
Department of Health,NHS Sheffield CCG,30/11/2016,C&M-PMS QOF Aspiration,PRC DELEGATED CO-COMMISSIONING,FALKLAND HOUSE,14916047,"2,350.86"
Department of Health,NHS Sheffield CCG,24/11/2016,C&M-GMS Cost of Drugs -Prescribing,LOCAL ENHANCED SERVICES,FAR LANE MEDICAL CENTRE,15123380,"3,502.32"
Department of Health,NHS Sheffield CCG,24/11/2016,C&M-GMS DES Minor Surgery,PRC DELEGATED CO-COMMISSIONING,FAR LANE MEDICAL CENTRE,15123380,"5,290.00"
Department of Health,NHS Sheffield CCG,24/11/2016,C&M-GMS Global Sum,PRC DELEGATED CO-COMMISSIONING,FAR LANE MEDICAL CENTRE,15123380,"51,618.93"
Department of Health,NHS Sheffield CCG,24/11/2016,C&M-GMS Prem Notional Rent,PRC DELEGATED CO-COMMISSIONING,FAR LANE MEDICAL CENTRE,15123380,"3,637.50"
Department of Health,NHS Sheffield CCG,24/11/2016,C&M-GMS Prem Rates,PRC DELEGATED CO-COMMISSIONING,FAR LANE MEDICAL CENTRE,15123380,"1,016.40"
Department of Health,NHS Sheffield CCG,24/11/2016,C&M-GMS Prem Water Rates,PRC DELEGATED CO-COMMISSIONING,FAR LANE MEDICAL CENTRE,15123380,89.34
Department of Health,NHS Sheffield CCG,24/11/2016,C&M-GMS Prof Fees Prescribing,PRC DELEGATED CO-COMMISSIONING,FAR LANE MEDICAL CENTRE,15123380,"1,016.96"
Department of Health,NHS Sheffield CCG,24/11/2016,C&M-GMS QOF Aspiration,PRC DELEGATED CO-COMMISSIONING,FAR LANE MEDICAL CENTRE,15123380,"5,648.61"
Department of Health,NHS Sheffield CCG,30/11/2016,C&M-PMS Contract Value,PRC DELEGATED CO-COMMISSIONING,FIRTH PARK SURGERY,14916044,"-61,811.66"
Department of Health,NHS Sheffield CCG,30/11/2016,C&M-PMS GP Statutory Levy,PRC DELEGATED CO-COMMISSIONING,FIRTH PARK SURGERY,14916044,-288.9
Department of Health,NHS Sheffield CCG,30/11/2016,C&M-PMS Out of Hours Opt Outs,PRC DELEGATED CO-COMMISSIONING,FIRTH PARK SURGERY,14916044,-51.75
Department of Health,NHS Sheffield CCG,30/11/2016,C&M-PMS Voluntary Levy,PRC DELEGATED CO-COMMISSIONING,FIRTH PARK SURGERY,14916044,-48.15
Department of Health,NHS Sheffield CCG,30/11/2016,ME - PMS TPS Added Years Adj EEs,PRC DELEGATED CO-COMMISSIONING,FIRTH PARK SURGERY,14916044,-29.06
Department of Health,NHS Sheffield CCG,30/11/2016,C&M-PMS Contract Value,PRC DELEGATED CO-COMMISSIONING,FIRTH PARK SURGERY,14916045,"129,105.94"
Department of Health,NHS Sheffield CCG,30/11/2016,C&M-PMS DES Minor Surgery,PRC DELEGATED CO-COMMISSIONING,FIRTH PARK SURGERY,14916045,"1,500.00"
Department of Health,NHS Sheffield CCG,30/11/2016,C&M-PMS Out of Hours Opt Outs,PRC DELEGATED CO-COMMISSIONING,FIRTH PARK SURGERY,14916045,"-3,365.21"
Department of Health,NHS Sheffield CCG,30/11/2016,C&M-PMS Prem Notional Rent,PRC DELEGATED CO-COMMISSIONING,FIRTH PARK SURGERY,14916045,"4,416.67"
Department of Health,NHS Sheffield CCG,30/11/2016,C&M-PMS Prem Rates,PRC DELEGATED CO-COMMISSIONING,FIRTH PARK SURGERY,14916045,"1,718.79"
Department of Health,NHS Sheffield CCG,30/11/2016,C&M-PMS Prem Water Rates,PRC DELEGATED CO-COMMISSIONING,FIRTH PARK SURGERY,14916045,850.11
Department of Health,NHS Sheffield CCG,30/11/2016,C&M-PMS QOF Aspiration,PRC DELEGATED CO-COMMISSIONING,FIRTH PARK SURGERY,14916045,"7,439.23"
Department of Health,NHS Sheffield CCG,24/11/2016,C&M-GMS Cost of Drugs -Prescribing,LOCAL ENHANCED SERVICES,FLOWERS HEALTH CENTRE,15123452,"2,265.26"
Department of Health,NHS Sheffield CCG,24/11/2016,C&M-GMS DES Minor Surgery,PRC DELEGATED CO-COMMISSIONING,FLOWERS HEALTH CENTRE,15123452,"1,230.00"
Department of Health,NHS Sheffield CCG,24/11/2016,C&M-GMS Global Sum,PRC DELEGATED CO-COMMISSIONING,FLOWERS HEALTH CENTRE,15123452,"30,906.38"
Department of Health,NHS Sheffield CCG,24/11/2016,C&M-GMS MPIG Correction Factor,PRC DELEGATED CO-COMMISSIONING,FLOWERS HEALTH CENTRE,15123452,"2,952.62"
Department of Health,NHS Sheffield CCG,24/11/2016,C&M-GMS Prem Healthcentre Rent,PRC DELEGATED CO-COMMISSIONING,FLOWERS HEALTH CENTRE,15123452,"32,996.55"
Department of Health,NHS Sheffield CCG,24/11/2016,C&M-GMS Prof Fees Prescribing,PRC DELEGATED CO-COMMISSIONING,FLOWERS HEALTH CENTRE,15123452,607.04
Department of Health,NHS Sheffield CCG,24/11/2016,C&M-GMS QOF Aspiration,PRC DELEGATED CO-COMMISSIONING,FLOWERS HEALTH CENTRE,15123452,"3,922.75"
Department of Health,NHS Sheffield CCG,30/11/2016,Cont Care-Physical Disab (<65),CHC ADULT FULLY FUNDED,FOUR SEASONS HEALTH CARE LTD,14925040,"37,842.92"
Department of Health,NHS Sheffield CCG,30/11/2016,C&M-PMS Contract Value,PRC DELEGATED CO-COMMISSIONING,FOXHILL MEDICAL CENTRE SHEFFIELD,14916099,"-46,540.03"
Department of Health,NHS Sheffield CCG,30/11/2016,C&M-PMS GP Statutory Levy,PRC DELEGATED CO-COMMISSIONING,FOXHILL MEDICAL CENTRE SHEFFIELD,14916099,-186.21
Department of Health,NHS Sheffield CCG,30/11/2016,C&M-PMS Out of Hours Opt Outs,PRC DELEGATED CO-COMMISSIONING,FOXHILL MEDICAL CENTRE SHEFFIELD,14916099,-35.67
Department of Health,NHS Sheffield CCG,30/11/2016,C&M-PMS Prem Healthcentre Rent,PRC DELEGATED CO-COMMISSIONING,FOXHILL MEDICAL CENTRE SHEFFIELD,14916099,"-2,261.89"
Department of Health,NHS Sheffield CCG,30/11/2016,C&M-PMS Voluntary Levy,PRC DELEGATED CO-COMMISSIONING,FOXHILL MEDICAL CENTRE SHEFFIELD,14916099,-31.04
Department of Health,NHS Sheffield CCG,30/11/2016,C&M-PMS Baseline Adjustment,PRC DELEGATED CO-COMMISSIONING,FOXHILL MEDICAL CENTRE SHEFFIELD,14916100,"2,902.50"
Department of Health,NHS Sheffield CCG,30/11/2016,C&M-PMS Contract Value,PRC DELEGATED CO-COMMISSIONING,FOXHILL MEDICAL CENTRE SHEFFIELD,14916100,"94,179.77"
Department of Health,NHS Sheffield CCG,30/11/2016,C&M-PMS DES Minor Surgery,PRC DELEGATED CO-COMMISSIONING,FOXHILL MEDICAL CENTRE SHEFFIELD,14916100,"1,195.00"
Department of Health,NHS Sheffield CCG,30/11/2016,C&M-PMS DES UNPLANNED ADMISSIONS,PRC DELEGATED CO-COMMISSIONING,FOXHILL MEDICAL CENTRE SHEFFIELD,14916100,"4,804.80"
Department of Health,NHS Sheffield CCG,30/11/2016,C&M-PMS Out of Hours Opt Outs,PRC DELEGATED CO-COMMISSIONING,FOXHILL MEDICAL CENTRE SHEFFIELD,14916100,"-2,291.28"
Department of Health,NHS Sheffield CCG,30/11/2016,C&M-PMS Prem Healthcentre Rent,PRC DELEGATED CO-COMMISSIONING,FOXHILL MEDICAL CENTRE SHEFFIELD,14916100,"48,172.21"
Department of Health,NHS Sheffield CCG,30/11/2016,C&M-PMS QOF Aspiration,PRC DELEGATED CO-COMMISSIONING,FOXHILL MEDICAL CENTRE SHEFFIELD,14916100,"5,186.12"
Department of Health,NHS Sheffield CCG,30/11/2016,C&M-PMS Contract Value,PRC DELEGATED CO-COMMISSIONING,GLEADLESS MEDICAL CENTRE,14916048,"-61,039.11"
Department of Health,NHS Sheffield CCG,30/11/2016,C&M-PMS GP Statutory Levy,PRC DELEGATED CO-COMMISSIONING,GLEADLESS MEDICAL CENTRE,14916048,-264.18
Department of Health,NHS Sheffield CCG,30/11/2016,C&M-PMS Out of Hours Opt Outs,PRC DELEGATED CO-COMMISSIONING,GLEADLESS MEDICAL CENTRE,14916048,-45.89
Department of Health,NHS Sheffield CCG,30/11/2016,C&M-PMS Voluntary Levy,PRC DELEGATED CO-COMMISSIONING,GLEADLESS MEDICAL CENTRE,14916048,-44.03
Department of Health,NHS Sheffield CCG,30/11/2016,C&M-PMS Baseline Adjustment,PRC DELEGATED CO-COMMISSIONING,GLEADLESS MEDICAL CENTRE,14916049,"2,522.83"
Department of Health,NHS Sheffield CCG,30/11/2016,C&M-PMS Contract Value,PRC DELEGATED CO-COMMISSIONING,GLEADLESS MEDICAL CENTRE,14916049,"124,256.36"
Department of Health,NHS Sheffield CCG,30/11/2016,C&M-PMS DES Minor Surgery,PRC DELEGATED CO-COMMISSIONING,GLEADLESS MEDICAL CENTRE,14916049,320
Department of Health,NHS Sheffield CCG,30/11/2016,C&M-PMS DES UNPLANNED ADMISSIONS,PRC DELEGATED CO-COMMISSIONING,GLEADLESS MEDICAL CENTRE,14916049,"6,705.93"
Department of Health,NHS Sheffield CCG,30/11/2016,C&M-PMS Out of Hours Opt Outs,PRC DELEGATED CO-COMMISSIONING,GLEADLESS MEDICAL CENTRE,14916049,"-3,042.06"
Department of Health,NHS Sheffield CCG,30/11/2016,C&M-PMS Prem Notional Rent,PRC DELEGATED CO-COMMISSIONING,GLEADLESS MEDICAL CENTRE,14916049,"6,750.00"
Department of Health,NHS Sheffield CCG,30/11/2016,C&M-PMS Prem Rates,PRC DELEGATED CO-COMMISSIONING,GLEADLESS MEDICAL CENTRE,14916049,"1,118.25"
Department of Health,NHS Sheffield CCG,30/11/2016,C&M-PMS QOF Aspiration,PRC DELEGATED CO-COMMISSIONING,GLEADLESS MEDICAL CENTRE,14916049,"7,431.65"
Department of Health,NHS Sheffield CCG,24/11/2016,C&M-GMS Cost of Drugs -Prescribing,LOCAL ENHANCED SERVICES,GRENOSIDE SURGERY,15123386,"1,049.66"
Department of Health,NHS Sheffield CCG,24/11/2016,C&M-GMS DES Minor Surgery,PRC DELEGATED CO-COMMISSIONING,GRENOSIDE SURGERY,15123386,495
Department of Health,NHS Sheffield CCG,24/11/2016,C&M-GMS Global Sum,PRC DELEGATED CO-COMMISSIONING,GRENOSIDE SURGERY,15123386,"50,407.71"
Department of Health,NHS Sheffield CCG,24/11/2016,C&M-GMS Prem Notional Rent,PRC DELEGATED CO-COMMISSIONING,GRENOSIDE SURGERY,15123386,"8,150.17"
Department of Health,NHS Sheffield CCG,24/11/2016,C&M-GMS Prem Rates,PRC DELEGATED CO-COMMISSIONING,GRENOSIDE SURGERY,15123386,"3,723.35"
Department of Health,NHS Sheffield CCG,24/11/2016,C&M-GMS Prem Water Rates,PRC DELEGATED CO-COMMISSIONING,GRENOSIDE SURGERY,15123386,138.45
Department of Health,NHS Sheffield CCG,24/11/2016,C&M-GMS Prof Fees Prescribing,PRC DELEGATED CO-COMMISSIONING,GRENOSIDE SURGERY,15123386,85.12
Department of Health,NHS Sheffield CCG,24/11/2016,C&M-GMS QOF Aspiration,PRC DELEGATED CO-COMMISSIONING,GRENOSIDE SURGERY,15123386,"5,640.25"
Department of Health,NHS Sheffield CCG,24/11/2016,C&M-GMS Cost of Drugs -Prescribing,LOCAL ENHANCED SERVICES,GREYSTONES MEDICAL CENTRE,15123388,"2,290.79"
Department of Health,NHS Sheffield CCG,24/11/2016,C&M-GMS DES Minor Surgery,PRC DELEGATED CO-COMMISSIONING,GREYSTONES MEDICAL CENTRE,15123388,"1,395.00"
Department of Health,NHS Sheffield CCG,24/11/2016,C&M-GMS DES UNPLANNED ADMISSIONS,PRC DELEGATED CO-COMMISSIONING,GREYSTONES MEDICAL CENTRE,15123388,"2,787.40"
Department of Health,NHS Sheffield CCG,24/11/2016,C&M-GMS Global Sum,PRC DELEGATED CO-COMMISSIONING,GREYSTONES MEDICAL CENTRE,15123388,"17,824.66"
Department of Health,NHS Sheffield CCG,24/11/2016,C&M-GMS MPIG Correction Factor,PRC DELEGATED CO-COMMISSIONING,GREYSTONES MEDICAL CENTRE,15123388,"2,208.92"
Department of Health,NHS Sheffield CCG,24/11/2016,C&M-GMS Prem Notional Rent,PRC DELEGATED CO-COMMISSIONING,GREYSTONES MEDICAL CENTRE,15123388,"2,729.17"
Department of Health,NHS Sheffield CCG,24/11/2016,C&M-GMS Prem Rates,PRC DELEGATED CO-COMMISSIONING,GREYSTONES MEDICAL CENTRE,15123388,849.04
Department of Health,NHS Sheffield CCG,24/11/2016,C&M-GMS Prof Fees Prescribing,PRC DELEGATED CO-COMMISSIONING,GREYSTONES MEDICAL CENTRE,15123388,710.08
Department of Health,NHS Sheffield CCG,24/11/2016,C&M-GMS QOF Aspiration,PRC DELEGATED CO-COMMISSIONING,GREYSTONES MEDICAL CENTRE,15123388,"1,888.68"
Department of Health,NHS Sheffield CCG,30/11/2016,C&M-PMS Contract Value,PRC DELEGATED CO-COMMISSIONING,HACKENTHORPE MEDICAL CENTRE,14916052,"-43,660.67"
Department of Health,NHS Sheffield CCG,30/11/2016,C&M-PMS GP Statutory Levy,PRC DELEGATED CO-COMMISSIONING,HACKENTHORPE MEDICAL CENTRE,14916052,-200.46
Department of Health,NHS Sheffield CCG,30/11/2016,C&M-PMS Out of Hours Opt Outs,PRC DELEGATED CO-COMMISSIONING,HACKENTHORPE MEDICAL CENTRE,14916052,-37.47
Department of Health,NHS Sheffield CCG,30/11/2016,C&M-PMS Voluntary Levy,PRC DELEGATED CO-COMMISSIONING,HACKENTHORPE MEDICAL CENTRE,14916052,-33.41
Department of Health,NHS Sheffield CCG,30/11/2016,ME - PMS TPS Added Years Adj EEs,PRC DELEGATED CO-COMMISSIONING,HACKENTHORPE MEDICAL CENTRE,14916052,-457.5
Department of Health,NHS Sheffield CCG,30/11/2016,C&M-PMS Baseline Adjustment,PRC DELEGATED CO-COMMISSIONING,HACKENTHORPE MEDICAL CENTRE,14936024,"4,211.17"
Department of Health,NHS Sheffield CCG,30/11/2016,C&M-PMS Contract Value,PRC DELEGATED CO-COMMISSIONING,HACKENTHORPE MEDICAL CENTRE,14936024,"87,168.53"
Department of Health,NHS Sheffield CCG,30/11/2016,C&M-PMS DES Learn Dsblty Hlth Chk,PRC DELEGATED CO-COMMISSIONING,HACKENTHORPE MEDICAL CENTRE,14936024,696
Department of Health,NHS Sheffield CCG,30/11/2016,C&M-PMS DES Minor Surgery,PRC DELEGATED CO-COMMISSIONING,HACKENTHORPE MEDICAL CENTRE,14936024,920
Department of Health,NHS Sheffield CCG,30/11/2016,C&M-PMS DES UNPLANNED ADMISSIONS,PRC DELEGATED CO-COMMISSIONING,HACKENTHORPE MEDICAL CENTRE,14936024,"5,144.37"
Department of Health,NHS Sheffield CCG,30/11/2016,C&M-PMS Out of Hours Opt Outs,PRC DELEGATED CO-COMMISSIONING,HACKENTHORPE MEDICAL CENTRE,14936024,"-2,094.67"
Department of Health,NHS Sheffield CCG,30/11/2016,C&M-PMS Prem Notional Rent,PRC DELEGATED CO-COMMISSIONING,HACKENTHORPE MEDICAL CENTRE,14936024,"4,981.25"
Department of Health,NHS Sheffield CCG,30/11/2016,C&M-PMS Prem Rates,PRC DELEGATED CO-COMMISSIONING,HACKENTHORPE MEDICAL CENTRE,14936024,847
Department of Health,NHS Sheffield CCG,30/11/2016,C&M-PMS Prem Water Rates,PRC DELEGATED CO-COMMISSIONING,HACKENTHORPE MEDICAL CENTRE,14936024,474.95
Department of Health,NHS Sheffield CCG,30/11/2016,C&M-PMS QOF Aspiration,PRC DELEGATED CO-COMMISSIONING,HACKENTHORPE MEDICAL CENTRE,14936024,"6,104.43"
Department of Health,NHS Sheffield CCG,30/11/2016,ME - PMS GP Prior Year ERs,PRC DELEGATED CO-COMMISSIONING,HACKENTHORPE MEDICAL CENTRE,14936024,915.2
Department of Health,NHS Sheffield CCG,30/11/2016,ME-PMS GP Prior Year EEs,PRC DELEGATED CO-COMMISSIONING,HACKENTHORPE MEDICAL CENTRE,14936024,595.2
Department of Health,NHS Sheffield CCG,24/11/2016,C&M-GMS Cost of Drugs -Prescribing,LOCAL ENHANCED SERVICES,HANDSWORTH MEDICAL PRACTICE SHEFFIELD,15123384,"6,541.82"
Department of Health,NHS Sheffield CCG,24/11/2016,C&M-GMS DES Minor Surgery,PRC DELEGATED CO-COMMISSIONING,HANDSWORTH MEDICAL PRACTICE SHEFFIELD,15123384,"1,030.00"
Department of Health,NHS Sheffield CCG,24/11/2016,C&M-GMS Global Sum,PRC DELEGATED CO-COMMISSIONING,HANDSWORTH MEDICAL PRACTICE SHEFFIELD,15123384,"67,656.00"
Department of Health,NHS Sheffield CCG,24/11/2016,C&M-GMS Prem Notional Rent,PRC DELEGATED CO-COMMISSIONING,HANDSWORTH MEDICAL PRACTICE SHEFFIELD,15123384,"3,321.67"
Department of Health,NHS Sheffield CCG,24/11/2016,C&M-GMS Prof Fees Prescribing,PRC DELEGATED CO-COMMISSIONING,HANDSWORTH MEDICAL PRACTICE SHEFFIELD,15123384,"1,749.44"
Department of Health,NHS Sheffield CCG,24/11/2016,C&M-GMS QOF Aspiration,PRC DELEGATED CO-COMMISSIONING,HANDSWORTH MEDICAL PRACTICE SHEFFIELD,15123384,"7,268.73"
Department of Health,NHS Sheffield CCG,24/11/2016,C&M-GMS Cost of Drugs -Prescribing,LOCAL ENHANCED SERVICES,HEALTH CARE SURGERY,15123394,"1,755.48"
Department of Health,NHS Sheffield CCG,24/11/2016,C&M-GMS Global Sum,PRC DELEGATED CO-COMMISSIONING,HEALTH CARE SURGERY,15123394,"33,550.06"
Department of Health,NHS Sheffield CCG,24/11/2016,C&M-GMS MPIG Correction Factor,PRC DELEGATED CO-COMMISSIONING,HEALTH CARE SURGERY,15123394,"1,560.04"
Department of Health,NHS Sheffield CCG,24/11/2016,C&M-GMS Prem Notional Rent,PRC DELEGATED CO-COMMISSIONING,HEALTH CARE SURGERY,15123394,"3,862.50"
Department of Health,NHS Sheffield CCG,24/11/2016,C&M-GMS Prem Rates,PRC DELEGATED CO-COMMISSIONING,HEALTH CARE SURGERY,15123394,"1,356.40"
Department of Health,NHS Sheffield CCG,24/11/2016,C&M-GMS Prof Fees Prescribing,PRC DELEGATED CO-COMMISSIONING,HEALTH CARE SURGERY,15123394,481.6
Department of Health,NHS Sheffield CCG,24/11/2016,C&M-GMS QOF Aspiration,PRC DELEGATED CO-COMMISSIONING,HEALTH CARE SURGERY,15123394,"3,988.06"
Department of Health,NHS Sheffield CCG,24/11/2016,C&M-GMS Cost of Drugs -Prescribing,LOCAL ENHANCED SERVICES,HEELEY GREEN SURGERY,15123390,313.83
Department of Health,NHS Sheffield CCG,24/11/2016,C&M-GMS DES Learn Dsblty Hlth Chk,PRC DELEGATED CO-COMMISSIONING,HEELEY GREEN SURGERY,15123390,464
Department of Health,NHS Sheffield CCG,24/11/2016,C&M-GMS Global Sum,PRC DELEGATED CO-COMMISSIONING,HEELEY GREEN SURGERY,15123390,"36,604.46"
Department of Health,NHS Sheffield CCG,24/11/2016,C&M-GMS MPIG Correction Factor,PRC DELEGATED CO-COMMISSIONING,HEELEY GREEN SURGERY,15123390,752.4
Department of Health,NHS Sheffield CCG,24/11/2016,C&M-GMS Prem Notional Rent,PRC DELEGATED CO-COMMISSIONING,HEELEY GREEN SURGERY,15123390,"3,254.17"
Department of Health,NHS Sheffield CCG,24/11/2016,C&M-GMS Prem Rates,PRC DELEGATED CO-COMMISSIONING,HEELEY GREEN SURGERY,15123390,137.22
Department of Health,NHS Sheffield CCG,24/11/2016,C&M-GMS Prof Fees Prescribing,PRC DELEGATED CO-COMMISSIONING,HEELEY GREEN SURGERY,15123390,114.24
Department of Health,NHS Sheffield CCG,24/11/2016,C&M-GMS QOF Aspiration,PRC DELEGATED CO-COMMISSIONING,HEELEY GREEN SURGERY,15123390,"4,447.38"
Department of Health,NHS Sheffield CCG,30/11/2016,Cont Care-Learning Disab(<65),CHC ADULT FULLY FUNDED,HESLEY GROUP,14885935,"56,593.51"
Department of Health,NHS Sheffield CCG,30/11/2016,Cont Care-Learning Disab(<65),CHC ADULT FULLY FUNDED,HESLEY GROUP,14922762,"56,593.51"
Department of Health,NHS Sheffield CCG,24/11/2016,C&M-GMS Cost of Drugs -Prescribing,LOCAL ENHANCED SERVICES,HOLLIES MEDICAL CENTRE,15123392,"1,771.57"
Department of Health,NHS Sheffield CCG,24/11/2016,C&M-GMS DES Minor Surgery,PRC DELEGATED CO-COMMISSIONING,HOLLIES MEDICAL CENTRE,15123392,850
Department of Health,NHS Sheffield CCG,24/11/2016,C&M-GMS DES UNPLANNED ADMISSIONS,PRC DELEGATED CO-COMMISSIONING,HOLLIES MEDICAL CENTRE,15123392,"6,138.44"
Department of Health,NHS Sheffield CCG,24/11/2016,C&M-GMS Global Sum,PRC DELEGATED CO-COMMISSIONING,HOLLIES MEDICAL CENTRE,15123392,"46,698.65"
Department of Health,NHS Sheffield CCG,24/11/2016,C&M-GMS MPIG Correction Factor,PRC DELEGATED CO-COMMISSIONING,HOLLIES MEDICAL CENTRE,15123392,"2,905.46"
Department of Health,NHS Sheffield CCG,24/11/2016,C&M-GMS Prem Notional Rent,PRC DELEGATED CO-COMMISSIONING,HOLLIES MEDICAL CENTRE,15123392,"3,229.17"
Department of Health,NHS Sheffield CCG,24/11/2016,C&M-GMS Prof Fees Prescribing,PRC DELEGATED CO-COMMISSIONING,HOLLIES MEDICAL CENTRE,15123392,271.04
Department of Health,NHS Sheffield CCG,24/11/2016,C&M-GMS QOF Aspiration,PRC DELEGATED CO-COMMISSIONING,HOLLIES MEDICAL CENTRE,15123392,"5,955.77"
Department of Health,NHS Sheffield CCG,30/11/2016,Cont Care-Physical Disab (<65),CHC ADULT FULLY FUNDED,HORIZON CARE HOMES LTD,14925217,"38,393.57"
Department of Health,NHS Sheffield CCG,30/11/2016,C&M-PMS Contract Value,PRC DELEGATED CO-COMMISSIONING,JAUNTY SPRINGS HEALTH CENTRE,14916053,"-26,624.64"
Department of Health,NHS Sheffield CCG,30/11/2016,C&M-PMS GP Statutory Levy,PRC DELEGATED CO-COMMISSIONING,JAUNTY SPRINGS HEALTH CENTRE,14916053,-109.26
Department of Health,NHS Sheffield CCG,30/11/2016,C&M-PMS Out of Hours Opt Outs,PRC DELEGATED CO-COMMISSIONING,JAUNTY SPRINGS HEALTH CENTRE,14916053,-22.01
Department of Health,NHS Sheffield CCG,30/11/2016,C&M-PMS Voluntary Levy,PRC DELEGATED CO-COMMISSIONING,JAUNTY SPRINGS HEALTH CENTRE,14916053,-18.21
Department of Health,NHS Sheffield CCG,30/11/2016,C&M-PMS Baseline Adjustment,PRC DELEGATED CO-COMMISSIONING,JAUNTY SPRINGS HEALTH CENTRE,14916054,896
Department of Health,NHS Sheffield CCG,30/11/2016,C&M-PMS Contract Value,PRC DELEGATED CO-COMMISSIONING,JAUNTY SPRINGS HEALTH CENTRE,14916054,"54,300.70"
Department of Health,NHS Sheffield CCG,30/11/2016,C&M-PMS DES Minor Surgery,PRC DELEGATED CO-COMMISSIONING,JAUNTY SPRINGS HEALTH CENTRE,14916054,290
Department of Health,NHS Sheffield CCG,30/11/2016,C&M-PMS DES UNPLANNED ADMISSIONS,PRC DELEGATED CO-COMMISSIONING,JAUNTY SPRINGS HEALTH CENTRE,14916054,"2,823.59"
Department of Health,NHS Sheffield CCG,30/11/2016,C&M-PMS Out of Hours Opt Outs,PRC DELEGATED CO-COMMISSIONING,JAUNTY SPRINGS HEALTH CENTRE,14916054,"-1,332.96"
Department of Health,NHS Sheffield CCG,30/11/2016,C&M-PMS Prem Notional Rent,PRC DELEGATED CO-COMMISSIONING,JAUNTY SPRINGS HEALTH CENTRE,14916054,"3,208.34"
Department of Health,NHS Sheffield CCG,30/11/2016,C&M-PMS Prem Rates,PRC DELEGATED CO-COMMISSIONING,JAUNTY SPRINGS HEALTH CENTRE,14916054,"1,230.08"
Department of Health,NHS Sheffield CCG,30/11/2016,C&M-PMS QOF Aspiration,PRC DELEGATED CO-COMMISSIONING,JAUNTY SPRINGS HEALTH CENTRE,14916054,"3,987.95"
Department of Health,NHS Sheffield CCG,30/11/2016,C&M-GMS IT Comm Servs -GP Practices,PRIMARY CARE IT,KIER BUSINESS SERVICES LTD,14922871,"118,458.00"
Department of Health,NHS Sheffield CCG,30/11/2016,FM Computer Contracts,BUSINESS INFORMATICS,KIER BUSINESS SERVICES LTD,14922871,"41,803.20"
Department of Health,NHS Sheffield CCG,30/11/2016,Hcare Srv Rec NHS Trust-Contract Baseline,ACUTE COMMISSIONING,LEEDS TEACHING HOSPITALS NHS TRUST,14885159,"53,234.57"
Department of Health,NHS Sheffield CCG,30/11/2016,Cont Care-Funded Nursing Care Allow,FUNDED NURSING CARE,LIFE STYLE CARE (2011) PLC,14922984,"36,249.85"
Department of Health,NHS Sheffield CCG,30/11/2016,Cont Care-Physical Disab (<65),CHC ADULT FULLY FUNDED,LONGLEY HEALTH CARE LTD,14925207,"100,898.24"
Department of Health,NHS Sheffield CCG,30/11/2016,Cont Care-Physical Disab (<65),CHC ADULT FULLY FUNDED,LOXLEY HEALTH CARE LTD,14925199,"76,216.67"
Department of Health,NHS Sheffield CCG,30/11/2016,C&M-PMS Contract Value,PRC DELEGATED CO-COMMISSIONING,MANCHESTER ROAD SURGERY SHEFFIELD,14916057,"-26,939.50"
Department of Health,NHS Sheffield CCG,30/11/2016,C&M-PMS GP Statutory Levy,PRC DELEGATED CO-COMMISSIONING,MANCHESTER ROAD SURGERY SHEFFIELD,14916057,-138.21
Department of Health,NHS Sheffield CCG,30/11/2016,C&M-PMS Out of Hours Opt Outs,PRC DELEGATED CO-COMMISSIONING,MANCHESTER ROAD SURGERY SHEFFIELD,14916057,-54.31
Department of Health,NHS Sheffield CCG,30/11/2016,C&M-PMS Voluntary Levy,PRC DELEGATED CO-COMMISSIONING,MANCHESTER ROAD SURGERY SHEFFIELD,14916057,-23.04
Department of Health,NHS Sheffield CCG,30/11/2016,C&M-PMS Baseline Adjustment,PRC DELEGATED CO-COMMISSIONING,MANCHESTER ROAD SURGERY SHEFFIELD,14916058,893.25
Department of Health,NHS Sheffield CCG,30/11/2016,C&M-PMS Contract Value,PRC DELEGATED CO-COMMISSIONING,MANCHESTER ROAD SURGERY SHEFFIELD,14916058,"56,237.61"
Department of Health,NHS Sheffield CCG,30/11/2016,C&M-PMS DES Minor Surgery,PRC DELEGATED CO-COMMISSIONING,MANCHESTER ROAD SURGERY SHEFFIELD,14916058,"1,015.00"
Department of Health,NHS Sheffield CCG,30/11/2016,C&M-PMS DES UNPLANNED ADMISSIONS,PRC DELEGATED CO-COMMISSIONING,MANCHESTER ROAD SURGERY SHEFFIELD,14916058,"3,551.24"
Department of Health,NHS Sheffield CCG,30/11/2016,C&M-PMS Out of Hours Opt Outs,PRC DELEGATED CO-COMMISSIONING,MANCHESTER ROAD SURGERY SHEFFIELD,14916058,"-1,381.83"
Department of Health,NHS Sheffield CCG,30/11/2016,C&M-PMS PCO Locum Adop/Pat/Mat,PRC DELEGATED CO-COMMISSIONING,MANCHESTER ROAD SURGERY SHEFFIELD,14916058,"4,526.96"
Department of Health,NHS Sheffield CCG,30/11/2016,C&M-PMS Prem Cost Rent,PRC DELEGATED CO-COMMISSIONING,MANCHESTER ROAD SURGERY SHEFFIELD,14916058,"3,472.17"
Department of Health,NHS Sheffield CCG,30/11/2016,C&M-PMS Prem Notional Rent,PRC DELEGATED CO-COMMISSIONING,MANCHESTER ROAD SURGERY SHEFFIELD,14916058,442.91
Department of Health,NHS Sheffield CCG,30/11/2016,C&M-PMS Prem Rates,PRC DELEGATED CO-COMMISSIONING,MANCHESTER ROAD SURGERY SHEFFIELD,14916058,981.57
Department of Health,NHS Sheffield CCG,30/11/2016,C&M-PMS QOF Aspiration,PRC DELEGATED CO-COMMISSIONING,MANCHESTER ROAD SURGERY SHEFFIELD,14916058,"3,934.29"
Department of Health,NHS Sheffield CCG,24/11/2016,C&M-GMS Cost of Drugs -Prescribing,LOCAL ENHANCED SERVICES,MANOR PARK MEDICAL CENTRE SHEFFIELD,15123405,"2,576.60"
Department of Health,NHS Sheffield CCG,24/11/2016,C&M-GMS DES UNPLANNED ADMISSIONS,PRC DELEGATED CO-COMMISSIONING,MANOR PARK MEDICAL CENTRE SHEFFIELD,15123405,"3,456.53"
Department of Health,NHS Sheffield CCG,24/11/2016,C&M-GMS Global Sum,PRC DELEGATED CO-COMMISSIONING,MANOR PARK MEDICAL CENTRE SHEFFIELD,15123405,"31,913.48"
Department of Health,NHS Sheffield CCG,24/11/2016,C&M-GMS MPIG Correction Factor,PRC DELEGATED CO-COMMISSIONING,MANOR PARK MEDICAL CENTRE SHEFFIELD,15123405,745.59
Department of Health,NHS Sheffield CCG,24/11/2016,C&M-GMS Prem Notional Rent,PRC DELEGATED CO-COMMISSIONING,MANOR PARK MEDICAL CENTRE SHEFFIELD,15123405,"3,050.00"
Department of Health,NHS Sheffield CCG,24/11/2016,C&M-GMS Prem Rates,PRC DELEGATED CO-COMMISSIONING,MANOR PARK MEDICAL CENTRE SHEFFIELD,15123405,435.6
Department of Health,NHS Sheffield CCG,24/11/2016,C&M-GMS Prof Fees Prescribing,PRC DELEGATED CO-COMMISSIONING,MANOR PARK MEDICAL CENTRE SHEFFIELD,15123405,582.4
Department of Health,NHS Sheffield CCG,24/11/2016,C&M-GMS QOF Aspiration,PRC DELEGATED CO-COMMISSIONING,MANOR PARK MEDICAL CENTRE SHEFFIELD,15123405,"4,079.05"
Department of Health,NHS Sheffield CCG,24/11/2016,C&M-GMS Cost of Drugs -Prescribing,LOCAL ENHANCED SERVICES,MATHEWS PRACTICE,15123402,"3,989.74"
Department of Health,NHS Sheffield CCG,24/11/2016,C&M-GMS DES Minor Surgery,PRC DELEGATED CO-COMMISSIONING,MATHEWS PRACTICE,15123402,"2,055.00"
Department of Health,NHS Sheffield CCG,24/11/2016,C&M-GMS Global Sum,PRC DELEGATED CO-COMMISSIONING,MATHEWS PRACTICE,15123402,"64,004.83"
Department of Health,NHS Sheffield CCG,24/11/2016,C&M-GMS MPIG Correction Factor,PRC DELEGATED CO-COMMISSIONING,MATHEWS PRACTICE,15123402,"1,197.92"
Department of Health,NHS Sheffield CCG,24/11/2016,C&M-GMS Prem Notional Rent,PRC DELEGATED CO-COMMISSIONING,MATHEWS PRACTICE,15123402,"8,470.83"
Department of Health,NHS Sheffield CCG,24/11/2016,C&M-GMS Prem Rates,PRC DELEGATED CO-COMMISSIONING,MATHEWS PRACTICE,15123402,"1,598.35"
Department of Health,NHS Sheffield CCG,24/11/2016,C&M-GMS Prof Fees Prescribing,PRC DELEGATED CO-COMMISSIONING,MATHEWS PRACTICE,15123402,"1,189.03"
Department of Health,NHS Sheffield CCG,24/11/2016,C&M-GMS QOF Aspiration,PRC DELEGATED CO-COMMISSIONING,MATHEWS PRACTICE,15123402,"8,872.15"
Department of Health,NHS Sheffield CCG,30/11/2016,C&M-PMS Contract Value,PRC DELEGATED CO-COMMISSIONING,MEADOWHEAD GROUP PRACTICE,14916055,"-63,698.77"
Department of Health,NHS Sheffield CCG,30/11/2016,C&M-PMS GP Statutory Levy,PRC DELEGATED CO-COMMISSIONING,MEADOWHEAD GROUP PRACTICE,14916055,-293.07
Department of Health,NHS Sheffield CCG,30/11/2016,C&M-PMS Out of Hours Opt Outs,PRC DELEGATED CO-COMMISSIONING,MEADOWHEAD GROUP PRACTICE,14916055,-62.54
Department of Health,NHS Sheffield CCG,30/11/2016,C&M-PMS Voluntary Levy,PRC DELEGATED CO-COMMISSIONING,MEADOWHEAD GROUP PRACTICE,14916055,-48.85
Department of Health,NHS Sheffield CCG,30/11/2016,C&M-PMS Contract Value,PRC DELEGATED CO-COMMISSIONING,MEADOWHEAD GROUP PRACTICE,14916056,"134,329.91"
Department of Health,NHS Sheffield CCG,30/11/2016,C&M-PMS DES Learn Dsblty Hlth Chk,PRC DELEGATED CO-COMMISSIONING,MEADOWHEAD GROUP PRACTICE,14916056,116
Department of Health,NHS Sheffield CCG,30/11/2016,C&M-PMS DES Minor Surgery,PRC DELEGATED CO-COMMISSIONING,MEADOWHEAD GROUP PRACTICE,14916056,"1,360.00"
Department of Health,NHS Sheffield CCG,30/11/2016,C&M-PMS DES UNPLANNED ADMISSIONS,PRC DELEGATED CO-COMMISSIONING,MEADOWHEAD GROUP PRACTICE,14916056,"7,484.40"
Department of Health,NHS Sheffield CCG,30/11/2016,C&M-PMS Out of Hours Opt Outs,PRC DELEGATED CO-COMMISSIONING,MEADOWHEAD GROUP PRACTICE,14916056,"-3,396.41"
Department of Health,NHS Sheffield CCG,30/11/2016,C&M-PMS Prem Cost Rent,PRC DELEGATED CO-COMMISSIONING,MEADOWHEAD GROUP PRACTICE,14916056,"3,647.42"
Department of Health,NHS Sheffield CCG,30/11/2016,C&M-PMS Prem Notional Rent,PRC DELEGATED CO-COMMISSIONING,MEADOWHEAD GROUP PRACTICE,14916056,"3,358.33"
Department of Health,NHS Sheffield CCG,30/11/2016,C&M-PMS Prem Rates,PRC DELEGATED CO-COMMISSIONING,MEADOWHEAD GROUP PRACTICE,14916056,"1,663.43"
Department of Health,NHS Sheffield CCG,30/11/2016,C&M-PMS QOF Aspiration,PRC DELEGATED CO-COMMISSIONING,MEADOWHEAD GROUP PRACTICE,14916056,"9,587.98"
Department of Health,NHS Sheffield CCG,24/11/2016,C&M-GMS Cost of Drugs -Prescribing,LOCAL ENHANCED SERVICES,MEDICAL CENTRE CRYSTAL PEAKS,15123398,"4,456.43"
Department of Health,NHS Sheffield CCG,24/11/2016,C&M-GMS DES Minor Surgery,PRC DELEGATED CO-COMMISSIONING,MEDICAL CENTRE CRYSTAL PEAKS,15123398,"3,975.00"
Department of Health,NHS Sheffield CCG,24/11/2016,C&M-GMS DES UNPLANNED ADMISSIONS,PRC DELEGATED CO-COMMISSIONING,MEDICAL CENTRE CRYSTAL PEAKS,15123398,"5,003.46"
Department of Health,NHS Sheffield CCG,24/11/2016,C&M-GMS Global Sum,PRC DELEGATED CO-COMMISSIONING,MEDICAL CENTRE CRYSTAL PEAKS,15123398,"40,997.79"
Department of Health,NHS Sheffield CCG,24/11/2016,C&M-GMS MPIG Correction Factor,PRC DELEGATED CO-COMMISSIONING,MEDICAL CENTRE CRYSTAL PEAKS,15123398,"2,262.69"
Department of Health,NHS Sheffield CCG,24/11/2016,C&M-GMS Prem Notional Rent,PRC DELEGATED CO-COMMISSIONING,MEDICAL CENTRE CRYSTAL PEAKS,15123398,270
Department of Health,NHS Sheffield CCG,24/11/2016,C&M-GMS Prem Rates,PRC DELEGATED CO-COMMISSIONING,MEDICAL CENTRE CRYSTAL PEAKS,15123398,"2,037.70"
Department of Health,NHS Sheffield CCG,24/11/2016,C&M-GMS Prof Fees Prescribing,PRC DELEGATED CO-COMMISSIONING,MEDICAL CENTRE CRYSTAL PEAKS,15123398,"1,337.19"
Department of Health,NHS Sheffield CCG,24/11/2016,C&M-GMS QOF Aspiration,PRC DELEGATED CO-COMMISSIONING,MEDICAL CENTRE CRYSTAL PEAKS,15123398,"5,451.18"
Department of Health,NHS Sheffield CCG,24/11/2016,C&M-GMS Cost of Drugs -Prescribing,LOCAL ENHANCED SERVICES,MILL ROAD SURGERY SHEFFIELD,15123407,"4,381.35"
Department of Health,NHS Sheffield CCG,24/11/2016,C&M-GMS DES Minor Surgery,PRC DELEGATED CO-COMMISSIONING,MILL ROAD SURGERY SHEFFIELD,15123407,"2,300.00"
Department of Health,NHS Sheffield CCG,24/11/2016,C&M-GMS DES UNPLANNED ADMISSIONS,PRC DELEGATED CO-COMMISSIONING,MILL ROAD SURGERY SHEFFIELD,15123407,"4,046.35"
Department of Health,NHS Sheffield CCG,24/11/2016,C&M-GMS Global Sum,PRC DELEGATED CO-COMMISSIONING,MILL ROAD SURGERY SHEFFIELD,15123407,"36,081.53"
Department of Health,NHS Sheffield CCG,24/11/2016,C&M-GMS MPIG Correction Factor,PRC DELEGATED CO-COMMISSIONING,MILL ROAD SURGERY SHEFFIELD,15123407,244.08
Department of Health,NHS Sheffield CCG,24/11/2016,C&M-GMS Prem Notional Rent,PRC DELEGATED CO-COMMISSIONING,MILL ROAD SURGERY SHEFFIELD,15123407,"4,587.50"
Department of Health,NHS Sheffield CCG,24/11/2016,C&M-GMS Prem Rates,PRC DELEGATED CO-COMMISSIONING,MILL ROAD SURGERY SHEFFIELD,15123407,726
Department of Health,NHS Sheffield CCG,24/11/2016,C&M-GMS Prof Fees Prescribing,PRC DELEGATED CO-COMMISSIONING,MILL ROAD SURGERY SHEFFIELD,15123407,"1,088.64"
Department of Health,NHS Sheffield CCG,24/11/2016,C&M-GMS QOF Aspiration,PRC DELEGATED CO-COMMISSIONING,MILL ROAD SURGERY SHEFFIELD,15123407,"4,939.72"
Department of Health,NHS Sheffield CCG,30/11/2016,C&M-PMS Contract Value,PRC DELEGATED CO-COMMISSIONING,MOSBOROUGH HEALTH CENTRE,14916059,"-41,319.94"
Department of Health,NHS Sheffield CCG,30/11/2016,C&M-PMS GP Statutory Levy,PRC DELEGATED CO-COMMISSIONING,MOSBOROUGH HEALTH CENTRE,14916059,-196.26
Department of Health,NHS Sheffield CCG,30/11/2016,C&M-PMS Out of Hours Opt Outs,PRC DELEGATED CO-COMMISSIONING,MOSBOROUGH HEALTH CENTRE,14916059,-55.75
Department of Health,NHS Sheffield CCG,30/11/2016,C&M-PMS Voluntary Levy,PRC DELEGATED CO-COMMISSIONING,MOSBOROUGH HEALTH CENTRE,14916059,-32.71
Department of Health,NHS Sheffield CCG,30/11/2016,ME - PMS TPS Added Years Adj EEs,PRC DELEGATED CO-COMMISSIONING,MOSBOROUGH HEALTH CENTRE,14916059,-436.59
Department of Health,NHS Sheffield CCG,30/11/2016,C&M-PMS Baseline Adjustment,PRC DELEGATED CO-COMMISSIONING,MOSBOROUGH HEALTH CENTRE,14916060,"2,506.00"
Department of Health,NHS Sheffield CCG,30/11/2016,C&M-PMS Contract Value,PRC DELEGATED CO-COMMISSIONING,MOSBOROUGH HEALTH CENTRE,14916060,"84,454.98"
Department of Health,NHS Sheffield CCG,30/11/2016,C&M-PMS DES Minor Surgery,PRC DELEGATED CO-COMMISSIONING,MOSBOROUGH HEALTH CENTRE,14916060,"1,720.00"
Department of Health,NHS Sheffield CCG,30/11/2016,C&M-PMS DES UNPLANNED ADMISSIONS,PRC DELEGATED CO-COMMISSIONING,MOSBOROUGH HEALTH CENTRE,14916060,"4,984.21"
Department of Health,NHS Sheffield CCG,30/11/2016,C&M-PMS Out of Hours Opt Outs,PRC DELEGATED CO-COMMISSIONING,MOSBOROUGH HEALTH CENTRE,14916060,"-2,058.45"
Department of Health,NHS Sheffield CCG,30/11/2016,C&M-PMS Prem Notional Rent,PRC DELEGATED CO-COMMISSIONING,MOSBOROUGH HEALTH CENTRE,14916060,"4,091.67"
Department of Health,NHS Sheffield CCG,30/11/2016,C&M-PMS Prem Rates,PRC DELEGATED CO-COMMISSIONING,MOSBOROUGH HEALTH CENTRE,14916060,665.5
Department of Health,NHS Sheffield CCG,30/11/2016,C&M-PMS QOF Aspiration,PRC DELEGATED CO-COMMISSIONING,MOSBOROUGH HEALTH CENTRE,14916060,"5,470.61"
Department of Health,NHS Sheffield CCG,30/11/2016,C&M-PMS Contract Value,PRC DELEGATED CO-COMMISSIONING,NETHERGREEN SURGERY,14916061,"-55,233.17"
Department of Health,NHS Sheffield CCG,30/11/2016,C&M-PMS GP Statutory Levy,PRC DELEGATED CO-COMMISSIONING,NETHERGREEN SURGERY,14916061,-279.09
Department of Health,NHS Sheffield CCG,30/11/2016,C&M-PMS Out of Hours Opt Outs,PRC DELEGATED CO-COMMISSIONING,NETHERGREEN SURGERY,14916061,-78.78
Department of Health,NHS Sheffield CCG,30/11/2016,C&M-PMS Voluntary Levy,PRC DELEGATED CO-COMMISSIONING,NETHERGREEN SURGERY,14916061,-46.52
Department of Health,NHS Sheffield CCG,30/11/2016,ME - PMS TPS Added Years Adj EEs,PRC DELEGATED CO-COMMISSIONING,NETHERGREEN SURGERY,14916061,-255.16
Department of Health,NHS Sheffield CCG,30/11/2016,C&M-PMS Baseline Adjustment,PRC DELEGATED CO-COMMISSIONING,NETHERGREEN SURGERY,14916062,"3,753.08"
Department of Health,NHS Sheffield CCG,30/11/2016,C&M-PMS Contract Value,PRC DELEGATED CO-COMMISSIONING,NETHERGREEN SURGERY,14916062,"112,569.55"
Department of Health,NHS Sheffield CCG,30/11/2016,C&M-PMS DES Learn Dsblty Hlth Chk,PRC DELEGATED CO-COMMISSIONING,NETHERGREEN SURGERY,14916062,"1,044.00"
Department of Health,NHS Sheffield CCG,30/11/2016,C&M-PMS DES Minor Surgery,PRC DELEGATED CO-COMMISSIONING,NETHERGREEN SURGERY,14916062,"1,250.00"
Department of Health,NHS Sheffield CCG,30/11/2016,C&M-PMS Out of Hours Opt Outs,PRC DELEGATED CO-COMMISSIONING,NETHERGREEN SURGERY,14916062,"-2,720.83"
Department of Health,NHS Sheffield CCG,30/11/2016,C&M-PMS Prem Notional Rent,PRC DELEGATED CO-COMMISSIONING,NETHERGREEN SURGERY,14916062,"5,057.33"
Department of Health,NHS Sheffield CCG,30/11/2016,C&M-PMS Prem Rates,PRC DELEGATED CO-COMMISSIONING,NETHERGREEN SURGERY,14916062,"1,143.10"
Department of Health,NHS Sheffield CCG,30/11/2016,C&M-PMS QOF Aspiration,PRC DELEGATED CO-COMMISSIONING,NETHERGREEN SURGERY,14916062,"5,755.28"
Department of Health,NHS Sheffield CCG,30/11/2016,Cont Care-Physical Disab (<65),CHC ADULT FULLY FUNDED,NEVILLE HEALTH CARE LTD,14925305,"68,567.88"
Department of Health,NHS Sheffield CCG,30/11/2016,Contract- Refuse & Clinical Waste,PRC DELEGATED CO-COMMISSIONING,NHS ENGLAND,15003072,"54,710.56"
Department of Health,NHS Sheffield CCG,30/11/2016,Contract- Refuse & Clinical Waste,PRC DELEGATED CO-COMMISSIONING,NHS ENGLAND,15003076,"-54,710.56"
Department of Health,NHS Sheffield CCG,30/11/2016,Service Charge,RECHARGES NHS PROPERTY SERVICES LTD,NHS PROPERTY SERVICES LTD,14922777,"40,152.95"
Department of Health,NHS Sheffield CCG,30/11/2016,Service Charge,RECHARGES NHS PROPERTY SERVICES LTD,NHS PROPERTY SERVICES LTD,14922780,"57,427.65"
Department of Health,NHS Sheffield CCG,30/11/2016,Rent,ESTATES AND FACILITIES,NHS PROPERTY SERVICES LTD,15109433,"75,285.07"
Department of Health,NHS Sheffield CCG,24/11/2016,C&M-GMS Cost of Drugs -Prescribing,LOCAL ENHANCED SERVICES,NORFOLK PARK HEALTH CENTRE,15123411,"2,277.97"
Department of Health,NHS Sheffield CCG,24/11/2016,C&M-GMS DES Minor Surgery,PRC DELEGATED CO-COMMISSIONING,NORFOLK PARK HEALTH CENTRE,15123411,85
Department of Health,NHS Sheffield CCG,24/11/2016,C&M-GMS Global Sum,PRC DELEGATED CO-COMMISSIONING,NORFOLK PARK HEALTH CENTRE,15123411,"31,162.50"
Department of Health,NHS Sheffield CCG,24/11/2016,C&M-GMS MPIG Correction Factor,PRC DELEGATED CO-COMMISSIONING,NORFOLK PARK HEALTH CENTRE,15123411,"1,849.21"
Department of Health,NHS Sheffield CCG,24/11/2016,C&M-GMS Prem Healthcentre Rent,PRC DELEGATED CO-COMMISSIONING,NORFOLK PARK HEALTH CENTRE,15123411,"23,089.03"
Department of Health,NHS Sheffield CCG,24/11/2016,C&M-GMS Prof Fees Prescribing,PRC DELEGATED CO-COMMISSIONING,NORFOLK PARK HEALTH CENTRE,15123411,674.24
Department of Health,NHS Sheffield CCG,24/11/2016,C&M-GMS QOF Aspiration,PRC DELEGATED CO-COMMISSIONING,NORFOLK PARK HEALTH CENTRE,15123411,"3,691.39"
Department of Health,NHS Sheffield CCG,30/11/2016,Clinical&Medical-Commercial Sector,PATIENT TRANSPORT,NORTHERN TAXIS LTD,14886719,"161,646.60"
Department of Health,NHS Sheffield CCG,30/11/2016,Clinical&Medical-Commercial Sector,PATIENT TRANSPORT,NORTHERN TAXIS LTD,14987906,"44,465.00"
Department of Health,NHS Sheffield CCG,24/11/2016,C&M-GMS Cost of Drugs -Prescribing,LOCAL ENHANCED SERVICES,NORWOOD MEDICAL CENTRE SHEFFIELD,15123414,"3,486.38"
Department of Health,NHS Sheffield CCG,24/11/2016,C&M-GMS DES Learn Dsblty Hlth Chk,PRC DELEGATED CO-COMMISSIONING,NORWOOD MEDICAL CENTRE SHEFFIELD,15123414,"1,508.00"
Department of Health,NHS Sheffield CCG,24/11/2016,C&M-GMS DES Minor Surgery,PRC DELEGATED CO-COMMISSIONING,NORWOOD MEDICAL CENTRE SHEFFIELD,15123414,"2,400.00"
Department of Health,NHS Sheffield CCG,24/11/2016,C&M-GMS Global Sum,PRC DELEGATED CO-COMMISSIONING,NORWOOD MEDICAL CENTRE SHEFFIELD,15123414,"57,541.68"
Department of Health,NHS Sheffield CCG,24/11/2016,C&M-GMS Prem Notional Rent,PRC DELEGATED CO-COMMISSIONING,NORWOOD MEDICAL CENTRE SHEFFIELD,15123414,"5,187.50"
Department of Health,NHS Sheffield CCG,24/11/2016,C&M-GMS Prem Rates,PRC DELEGATED CO-COMMISSIONING,NORWOOD MEDICAL CENTRE SHEFFIELD,15123414,981.58
Department of Health,NHS Sheffield CCG,24/11/2016,C&M-GMS Prof Fees Prescribing,PRC DELEGATED CO-COMMISSIONING,NORWOOD MEDICAL CENTRE SHEFFIELD,15123414,"1,066.24"
Department of Health,NHS Sheffield CCG,24/11/2016,C&M-GMS QOF Aspiration,PRC DELEGATED CO-COMMISSIONING,NORWOOD MEDICAL CENTRE SHEFFIELD,15123414,"7,632.11"
Department of Health,NHS Sheffield CCG,30/11/2016,Clinical&Medical-Independent Sector,URGENT CARE,ONE MEDICARE,14885788,"199,286.08"
Department of Health,NHS Sheffield CCG,30/11/2016,Clinical&Medical-Independent Sector,URGENT CARE,ONE MEDICARE,14886238,"-199,286.08"
Department of Health,NHS Sheffield CCG,30/11/2016,Clinical&Medical-Independent Sector,ACUTE COMMISSIONING,ONEHEALTH GROUP,15109832,"90,000.00"
Department of Health,NHS Sheffield CCG,24/11/2016,C&M-GMS Cost of Drugs -Dispensing,LOCAL ENHANCED SERVICES,OUGHTIBRIDGE SURGERY,15123418,"-19,786.80"
Department of Health,NHS Sheffield CCG,24/11/2016,C&M-GMS GP Statutory Levy,PRC DELEGATED CO-COMMISSIONING,OUGHTIBRIDGE SURGERY,15123418,-174.12
Department of Health,NHS Sheffield CCG,24/11/2016,C&M-GMS PrscChrgsCll&RmttdbyGPCntra,PRC DELEGATED CO-COMMISSIONING,OUGHTIBRIDGE SURGERY,15123418,-604.8
Department of Health,NHS Sheffield CCG,24/11/2016,C&M-GMS Voluntary Levy,PRC DELEGATED CO-COMMISSIONING,OUGHTIBRIDGE SURGERY,15123418,-29.02
Department of Health,NHS Sheffield CCG,24/11/2016,ME - GMS TPS Added Years Adj EEs,PRC DELEGATED CO-COMMISSIONING,OUGHTIBRIDGE SURGERY,15123418,-694.7
Department of Health,NHS Sheffield CCG,24/11/2016,ME-GMS GP Prior Year AVCs,PRC DELEGATED CO-COMMISSIONING,OUGHTIBRIDGE SURGERY,15123418,-778.53
Department of Health,NHS Sheffield CCG,24/11/2016,C&M-GMS Cost of Drugs -Dispensing,LOCAL ENHANCED SERVICES,OUGHTIBRIDGE SURGERY,15123419,"34,020.56"
Department of Health,NHS Sheffield CCG,24/11/2016,C&M-GMS DES Minor Surgery,PRC DELEGATED CO-COMMISSIONING,OUGHTIBRIDGE SURGERY,15123419,440
Department of Health,NHS Sheffield CCG,24/11/2016,C&M-GMS DES UNPLANNED ADMISSIONS,PRC DELEGATED CO-COMMISSIONING,OUGHTIBRIDGE SURGERY,15123419,"4,466.77"
Department of Health,NHS Sheffield CCG,24/11/2016,C&M-GMS Global Sum,PRC DELEGATED CO-COMMISSIONING,OUGHTIBRIDGE SURGERY,15123419,"38,630.05"
Department of Health,NHS Sheffield CCG,24/11/2016,C&M-GMS Prem Notional Rent,PRC DELEGATED CO-COMMISSIONING,OUGHTIBRIDGE SURGERY,15123419,"3,888.33"
Department of Health,NHS Sheffield CCG,24/11/2016,C&M-GMS Prem Rates,PRC DELEGATED CO-COMMISSIONING,OUGHTIBRIDGE SURGERY,15123419,"1,652.53"
Department of Health,NHS Sheffield CCG,24/11/2016,C&M-GMS Prof Fees Dispensing,PRC DELEGATED CO-COMMISSIONING,OUGHTIBRIDGE SURGERY,15123419,"5,263.22"
Department of Health,NHS Sheffield CCG,24/11/2016,C&M-GMS PrscrptnChrgsColl&RmttdbyGP,LOCAL ENHANCED SERVICES,OUGHTIBRIDGE SURGERY,15123419,604.8
Department of Health,NHS Sheffield CCG,24/11/2016,C&M-GMS QOF Aspiration,PRC DELEGATED CO-COMMISSIONING,OUGHTIBRIDGE SURGERY,15123419,"4,273.35"
Department of Health,NHS Sheffield CCG,30/11/2016,C&M-PMS Contract Value,PRC DELEGATED CO-COMMISSIONING,OWLTHORPE MEDICAL CENTRE,14916063,"-23,535.41"
Department of Health,NHS Sheffield CCG,30/11/2016,C&M-PMS GP Statutory Levy,PRC DELEGATED CO-COMMISSIONING,OWLTHORPE MEDICAL CENTRE,14916063,-124.62
Department of Health,NHS Sheffield CCG,30/11/2016,C&M-PMS Out of Hours Opt Outs,PRC DELEGATED CO-COMMISSIONING,OWLTHORPE MEDICAL CENTRE,14916063,-357.66
Department of Health,NHS Sheffield CCG,30/11/2016,C&M-PMS Voluntary Levy,PRC DELEGATED CO-COMMISSIONING,OWLTHORPE MEDICAL CENTRE,14916063,-20.77
Department of Health,NHS Sheffield CCG,30/11/2016,C&M-PMS Baseline Adjustment,PRC DELEGATED CO-COMMISSIONING,OWLTHORPE MEDICAL CENTRE,14916064,"2,999.33"
Department of Health,NHS Sheffield CCG,30/11/2016,C&M-PMS Contract Value,PRC DELEGATED CO-COMMISSIONING,OWLTHORPE MEDICAL CENTRE,14916064,"52,743.71"
Department of Health,NHS Sheffield CCG,30/11/2016,C&M-PMS DES Minor Surgery,PRC DELEGATED CO-COMMISSIONING,OWLTHORPE MEDICAL CENTRE,14916064,490
Department of Health,NHS Sheffield CCG,30/11/2016,C&M-PMS DES UNPLANNED ADMISSIONS,PRC DELEGATED CO-COMMISSIONING,OWLTHORPE MEDICAL CENTRE,14916064,"7,656.60"
Department of Health,NHS Sheffield CCG,30/11/2016,C&M-PMS Out of Hours Opt Outs,PRC DELEGATED CO-COMMISSIONING,OWLTHORPE MEDICAL CENTRE,14916064,"-1,088.92"
Department of Health,NHS Sheffield CCG,30/11/2016,C&M-PMS Prem Actual Rent,PRC DELEGATED CO-COMMISSIONING,OWLTHORPE MEDICAL CENTRE,14916064,"7,436.33"
Department of Health,NHS Sheffield CCG,30/11/2016,C&M-PMS Prem Rates,PRC DELEGATED CO-COMMISSIONING,OWLTHORPE MEDICAL CENTRE,14916064,981.58
Department of Health,NHS Sheffield CCG,30/11/2016,C&M-PMS QOF Aspiration,PRC DELEGATED CO-COMMISSIONING,OWLTHORPE MEDICAL CENTRE,14916064,"3,175.78"
Department of Health,NHS Sheffield CCG,30/11/2016,C&M-PMS Contract Value,PRC DELEGATED CO-COMMISSIONING,PAGE HALL MEDICAL CENTRE,14916065,"-56,382.25"
Department of Health,NHS Sheffield CCG,30/11/2016,C&M-PMS GP Statutory Levy,PRC DELEGATED CO-COMMISSIONING,PAGE HALL MEDICAL CENTRE,14916065,-222.18
Department of Health,NHS Sheffield CCG,30/11/2016,C&M-PMS Out of Hours Opt Outs,PRC DELEGATED CO-COMMISSIONING,PAGE HALL MEDICAL CENTRE,14916065,-64.32
Department of Health,NHS Sheffield CCG,30/11/2016,C&M-PMS Voluntary Levy,PRC DELEGATED CO-COMMISSIONING,PAGE HALL MEDICAL CENTRE,14916065,-37.03
Department of Health,NHS Sheffield CCG,30/11/2016,ME - PMS TPS Added Years Adj EEs,PRC DELEGATED CO-COMMISSIONING,PAGE HALL MEDICAL CENTRE,14916065,-605.25
Department of Health,NHS Sheffield CCG,30/11/2016,C&M-PMS Baseline Adjustment,PRC DELEGATED CO-COMMISSIONING,PAGE HALL MEDICAL CENTRE,14916066,"10,782.17"
Department of Health,NHS Sheffield CCG,30/11/2016,C&M-PMS Contract Value,PRC DELEGATED CO-COMMISSIONING,PAGE HALL MEDICAL CENTRE,14916066,"106,729.60"
Department of Health,NHS Sheffield CCG,30/11/2016,C&M-PMS DES Minor Surgery,PRC DELEGATED CO-COMMISSIONING,PAGE HALL MEDICAL CENTRE,14916066,480
Department of Health,NHS Sheffield CCG,30/11/2016,C&M-PMS DES UNPLANNED ADMISSIONS,PRC DELEGATED CO-COMMISSIONING,PAGE HALL MEDICAL CENTRE,14916066,"5,685.68"
Department of Health,NHS Sheffield CCG,30/11/2016,C&M-PMS Out of Hours Opt Outs,PRC DELEGATED CO-COMMISSIONING,PAGE HALL MEDICAL CENTRE,14916066,"-2,395.95"
Department of Health,NHS Sheffield CCG,30/11/2016,C&M-PMS Prem Notional Rent,PRC DELEGATED CO-COMMISSIONING,PAGE HALL MEDICAL CENTRE,14916066,"4,683.33"
Department of Health,NHS Sheffield CCG,30/11/2016,C&M-PMS Prem Rates,PRC DELEGATED CO-COMMISSIONING,PAGE HALL MEDICAL CENTRE,14916066,762.3
Department of Health,NHS Sheffield CCG,30/11/2016,C&M-PMS QOF Aspiration,PRC DELEGATED CO-COMMISSIONING,PAGE HALL MEDICAL CENTRE,14916066,"4,608.67"
Department of Health,NHS Sheffield CCG,30/11/2016,C&M-PMS Contract Value,PRC DELEGATED CO-COMMISSIONING,PARK HEALTH CENTRE,14916067,"-42,021.88"
Department of Health,NHS Sheffield CCG,30/11/2016,C&M-PMS GP Statutory Levy,PRC DELEGATED CO-COMMISSIONING,PARK HEALTH CENTRE,14916067,-160.92
Department of Health,NHS Sheffield CCG,30/11/2016,C&M-PMS Out of Hours Opt Outs,PRC DELEGATED CO-COMMISSIONING,PARK HEALTH CENTRE,14916067,-43.69
Department of Health,NHS Sheffield CCG,30/11/2016,C&M-PMS Voluntary Levy,PRC DELEGATED CO-COMMISSIONING,PARK HEALTH CENTRE,14916067,-26.82
Department of Health,NHS Sheffield CCG,30/11/2016,ME - PMS GP Prior Year ERs,PRC DELEGATED CO-COMMISSIONING,PARK HEALTH CENTRE,14916067,"-2,544.45"
Department of Health,NHS Sheffield CCG,30/11/2016,ME-PMS GP Prior Year EEs,PRC DELEGATED CO-COMMISSIONING,PARK HEALTH CENTRE,14916067,"-3,366.80"
Department of Health,NHS Sheffield CCG,30/11/2016,C&M-PMS Baseline Adjustment,PRC DELEGATED CO-COMMISSIONING,PARK HEALTH CENTRE,14916068,"6,580.33"
Department of Health,NHS Sheffield CCG,30/11/2016,C&M-PMS Contract Value,PRC DELEGATED CO-COMMISSIONING,PARK HEALTH CENTRE,14916068,"81,022.21"
Department of Health,NHS Sheffield CCG,30/11/2016,C&M-PMS DES Minor Surgery,PRC DELEGATED CO-COMMISSIONING,PARK HEALTH CENTRE,14916068,680
Department of Health,NHS Sheffield CCG,30/11/2016,C&M-PMS Out of Hours Opt Outs,PRC DELEGATED CO-COMMISSIONING,PARK HEALTH CENTRE,14916068,"-1,863.70"
Department of Health,NHS Sheffield CCG,30/11/2016,C&M-PMS Prem Notional Rent,PRC DELEGATED CO-COMMISSIONING,PARK HEALTH CENTRE,14916068,"6,000.00"
Department of Health,NHS Sheffield CCG,30/11/2016,C&M-PMS Prem Rates,PRC DELEGATED CO-COMMISSIONING,PARK HEALTH CENTRE,14916068,701.8
Department of Health,NHS Sheffield CCG,30/11/2016,C&M-PMS QOF Aspiration,PRC DELEGATED CO-COMMISSIONING,PARK HEALTH CENTRE,14916068,"3,864.73"
Department of Health,NHS Sheffield CCG,30/11/2016,C&M-PMS Contract Value,PRC DELEGATED CO-COMMISSIONING,PITSMOOR SURGERY,14916069,"-63,166.00"
Department of Health,NHS Sheffield CCG,30/11/2016,C&M-PMS GP Statutory Levy,PRC DELEGATED CO-COMMISSIONING,PITSMOOR SURGERY,14916069,-283.71
Department of Health,NHS Sheffield CCG,30/11/2016,C&M-PMS Out of Hours Opt Outs,PRC DELEGATED CO-COMMISSIONING,PITSMOOR SURGERY,14916069,-187.27
Department of Health,NHS Sheffield CCG,30/11/2016,C&M-PMS Voluntary Levy,PRC DELEGATED CO-COMMISSIONING,PITSMOOR SURGERY,14916069,-47.29
Department of Health,NHS Sheffield CCG,30/11/2016,C&M-PMS Contract Value,PRC DELEGATED CO-COMMISSIONING,PITSMOOR SURGERY,14916070,"135,330.28"
Department of Health,NHS Sheffield CCG,30/11/2016,C&M-PMS DES Minor Surgery,PRC DELEGATED CO-COMMISSIONING,PITSMOOR SURGERY,14916070,"1,735.00"
Department of Health,NHS Sheffield CCG,30/11/2016,C&M-PMS Out of Hours Opt Outs,PRC DELEGATED CO-COMMISSIONING,PITSMOOR SURGERY,14916070,"-3,375.08"
Department of Health,NHS Sheffield CCG,30/11/2016,C&M-PMS Prem Notional Rent,PRC DELEGATED CO-COMMISSIONING,PITSMOOR SURGERY,14916070,"9,479.17"
Department of Health,NHS Sheffield CCG,30/11/2016,C&M-PMS Prem Water Rates,PRC DELEGATED CO-COMMISSIONING,PITSMOOR SURGERY,14916070,515.51
Department of Health,NHS Sheffield CCG,30/11/2016,C&M-PMS QOF Aspiration,PRC DELEGATED CO-COMMISSIONING,PITSMOOR SURGERY,14916070,"6,765.92"
Department of Health,NHS Sheffield CCG,30/11/2016,C&M-PMS Contract Value,PRC DELEGATED CO-COMMISSIONING,PORTER BROOK MEDICAL CENTRE,14916071,"-156,325.06"
Department of Health,NHS Sheffield CCG,30/11/2016,C&M-PMS GP Statutory Levy,PRC DELEGATED CO-COMMISSIONING,PORTER BROOK MEDICAL CENTRE,14916071,-881.61
Department of Health,NHS Sheffield CCG,30/11/2016,C&M-PMS Out of Hours Opt Outs,PRC DELEGATED CO-COMMISSIONING,PORTER BROOK MEDICAL CENTRE,14916071,-101.41
Department of Health,NHS Sheffield CCG,30/11/2016,C&M-PMS Voluntary Levy,PRC DELEGATED CO-COMMISSIONING,PORTER BROOK MEDICAL CENTRE,14916071,-146.94
Department of Health,NHS Sheffield CCG,30/11/2016,C&M-PMS Baseline Adjustment,PRC DELEGATED CO-COMMISSIONING,PORTER BROOK MEDICAL CENTRE,14916072,"10,224.25"
Department of Health,NHS Sheffield CCG,30/11/2016,C&M-PMS Contract Value,PRC DELEGATED CO-COMMISSIONING,PORTER BROOK MEDICAL CENTRE,14916072,"296,857.63"
Department of Health,NHS Sheffield CCG,30/11/2016,C&M-PMS DES Learn Dsblty Hlth Chk,PRC DELEGATED CO-COMMISSIONING,PORTER BROOK MEDICAL CENTRE,14916072,348
Department of Health,NHS Sheffield CCG,30/11/2016,C&M-PMS DES Minor Surgery,PRC DELEGATED CO-COMMISSIONING,PORTER BROOK MEDICAL CENTRE,14916072,"4,430.00"
Department of Health,NHS Sheffield CCG,30/11/2016,C&M-PMS Out of Hours Opt Outs,PRC DELEGATED CO-COMMISSIONING,PORTER BROOK MEDICAL CENTRE,14916072,"-6,732.92"
Department of Health,NHS Sheffield CCG,30/11/2016,C&M-PMS Prem Actual Rent,PRC DELEGATED CO-COMMISSIONING,PORTER BROOK MEDICAL CENTRE,14916072,"1,333.33"
Department of Health,NHS Sheffield CCG,30/11/2016,C&M-PMS Prem Notional Rent,PRC DELEGATED CO-COMMISSIONING,PORTER BROOK MEDICAL CENTRE,14916072,"9,559.58"
Department of Health,NHS Sheffield CCG,30/11/2016,C&M-PMS Prem Rates,PRC DELEGATED CO-COMMISSIONING,PORTER BROOK MEDICAL CENTRE,14916072,"5,384.94"
Department of Health,NHS Sheffield CCG,30/11/2016,C&M-PMS QOF Aspiration,PRC DELEGATED CO-COMMISSIONING,PORTER BROOK MEDICAL CENTRE,14916072,"8,138.32"
Department of Health,NHS Sheffield CCG,30/11/2016,C&M-PMS Contract Value,PRC DELEGATED CO-COMMISSIONING,RICHMOND MEDICAL CENTRE,14916073,"-55,053.34"
Department of Health,NHS Sheffield CCG,30/11/2016,C&M-PMS GP Statutory Levy,PRC DELEGATED CO-COMMISSIONING,RICHMOND MEDICAL CENTRE,14916073,-252.66
Department of Health,NHS Sheffield CCG,30/11/2016,C&M-PMS Out of Hours Opt Outs,PRC DELEGATED CO-COMMISSIONING,RICHMOND MEDICAL CENTRE,14916073,-68.24
Department of Health,NHS Sheffield CCG,30/11/2016,C&M-PMS Voluntary Levy,PRC DELEGATED CO-COMMISSIONING,RICHMOND MEDICAL CENTRE,14916073,-42.11
Department of Health,NHS Sheffield CCG,30/11/2016,C&M-PMS Baseline Adjustment,PRC DELEGATED CO-COMMISSIONING,RICHMOND MEDICAL CENTRE,14916074,"3,604.75"
Department of Health,NHS Sheffield CCG,30/11/2016,C&M-PMS Contract Value,PRC DELEGATED CO-COMMISSIONING,RICHMOND MEDICAL CENTRE,14916074,"112,181.13"
Department of Health,NHS Sheffield CCG,30/11/2016,C&M-PMS DES Learn Dsblty Hlth Chk,PRC DELEGATED CO-COMMISSIONING,RICHMOND MEDICAL CENTRE,14916074,348
Department of Health,NHS Sheffield CCG,30/11/2016,C&M-PMS DES Minor Surgery,PRC DELEGATED CO-COMMISSIONING,RICHMOND MEDICAL CENTRE,14916074,"2,175.00"
Department of Health,NHS Sheffield CCG,30/11/2016,C&M-PMS DES UNPLANNED ADMISSIONS,PRC DELEGATED CO-COMMISSIONING,RICHMOND MEDICAL CENTRE,14916074,"6,437.20"
Department of Health,NHS Sheffield CCG,30/11/2016,C&M-PMS Out of Hours Opt Outs,PRC DELEGATED CO-COMMISSIONING,RICHMOND MEDICAL CENTRE,14916074,"-2,736.08"
Department of Health,NHS Sheffield CCG,30/11/2016,C&M-PMS Prem Notional Rent,PRC DELEGATED CO-COMMISSIONING,RICHMOND MEDICAL CENTRE,14916074,"4,520.00"
Department of Health,NHS Sheffield CCG,30/11/2016,C&M-PMS Prem Rates,PRC DELEGATED CO-COMMISSIONING,RICHMOND MEDICAL CENTRE,14916074,"1,018.85"
Department of Health,NHS Sheffield CCG,30/11/2016,C&M-PMS QOF Aspiration,PRC DELEGATED CO-COMMISSIONING,RICHMOND MEDICAL CENTRE,14916074,"7,024.93"
Department of Health,NHS Sheffield CCG,30/11/2016,ME - PMS GP Prior Year ERs,PRC DELEGATED CO-COMMISSIONING,RICHMOND MEDICAL CENTRE,14916074,"1,664.94"
Department of Health,NHS Sheffield CCG,30/11/2016,ME-PMS GP Prior Year EEs,PRC DELEGATED CO-COMMISSIONING,RICHMOND MEDICAL CENTRE,14916074,"1,082.79"
Department of Health,NHS Sheffield CCG,30/11/2016,Cont Care-Funded Nursing Care Allow,FUNDED NURSING CARE,ROSEBERRY CARE CENTRES,14899991,"25,156.15"
Department of Health,NHS Sheffield CCG,30/11/2016,Cont Care-Funded Nursing Care Allow,FUNDED NURSING CARE,ROSEBERRY CARE CENTRES,14925290,"36,642.16"
Department of Health,NHS Sheffield CCG,30/11/2016,Cont Care-Physical Disab (<65),CHC ADULT FULLY FUNDED,ROSEBERRY CARE CENTRES,14925310,"34,234.35"
Department of Health,NHS Sheffield CCG,30/11/2016,Cont Care-Physical Disab (<65),CHC ADULT FULLY FUNDED,ROSEBERRY CARE CENTRES,14925347,"26,228.23"
Department of Health,NHS Sheffield CCG,30/11/2016,Hcare Srv Rec Fdtn Trust-Contract Baseline,ACUTE COMMISSIONING,ROTHERHAM NHS FOUNDATION TRUST,14885691,"435,933.00"
Department of Health,NHS Sheffield CCG,30/11/2016,C&M-PMS Contract Value,PRC DELEGATED CO-COMMISSIONING,RUSTLINGS ROAD MEDICAL CENTRE,14916077,"-25,113.42"
Department of Health,NHS Sheffield CCG,30/11/2016,C&M-PMS GP Statutory Levy,PRC DELEGATED CO-COMMISSIONING,RUSTLINGS ROAD MEDICAL CENTRE,14916077,-138.66
Department of Health,NHS Sheffield CCG,30/11/2016,C&M-PMS Out of Hours Opt Outs,PRC DELEGATED CO-COMMISSIONING,RUSTLINGS ROAD MEDICAL CENTRE,14916077,-41.43
Department of Health,NHS Sheffield CCG,30/11/2016,C&M-PMS Voluntary Levy,PRC DELEGATED CO-COMMISSIONING,RUSTLINGS ROAD MEDICAL CENTRE,14916077,-23.11
Department of Health,NHS Sheffield CCG,30/11/2016,C&M-PMS Baseline Adjustment,PRC DELEGATED CO-COMMISSIONING,RUSTLINGS ROAD MEDICAL CENTRE,14916078,"2,471.83"
Department of Health,NHS Sheffield CCG,30/11/2016,C&M-PMS Contract Value,PRC DELEGATED CO-COMMISSIONING,RUSTLINGS ROAD MEDICAL CENTRE,14916078,"50,468.03"
Department of Health,NHS Sheffield CCG,30/11/2016,C&M-PMS DES UNPLANNED ADMISSIONS,PRC DELEGATED CO-COMMISSIONING,RUSTLINGS ROAD MEDICAL CENTRE,14916078,"3,512.74"
Department of Health,NHS Sheffield CCG,30/11/2016,C&M-PMS Out of Hours Opt Outs,PRC DELEGATED CO-COMMISSIONING,RUSTLINGS ROAD MEDICAL CENTRE,14916078,"-1,200.08"
Department of Health,NHS Sheffield CCG,30/11/2016,C&M-PMS Prem Notional Rent,PRC DELEGATED CO-COMMISSIONING,RUSTLINGS ROAD MEDICAL CENTRE,14916078,"1,167.92"
Department of Health,NHS Sheffield CCG,30/11/2016,C&M-PMS Prem Rates,PRC DELEGATED CO-COMMISSIONING,RUSTLINGS ROAD MEDICAL CENTRE,14916078,435.6
Department of Health,NHS Sheffield CCG,30/11/2016,C&M-PMS QOF Aspiration,PRC DELEGATED CO-COMMISSIONING,RUSTLINGS ROAD MEDICAL CENTRE,14916078,"2,262.57"
Department of Health,NHS Sheffield CCG,30/11/2016,C&M-PMS Baseline Adjustment,PRC DELEGATED CO-COMMISSIONING,SELBORNE ROAD MEDICAL CENTRE,14916076,"1,263.08"
Department of Health,NHS Sheffield CCG,30/11/2016,C&M-PMS Contract Value,PRC DELEGATED CO-COMMISSIONING,SELBORNE ROAD MEDICAL CENTRE,14916076,"35,787.22"
Department of Health,NHS Sheffield CCG,30/11/2016,C&M-PMS DES Minor Surgery,PRC DELEGATED CO-COMMISSIONING,SELBORNE ROAD MEDICAL CENTRE,14916076,85
Department of Health,NHS Sheffield CCG,30/11/2016,C&M-PMS DES UNPLANNED ADMISSIONS,PRC DELEGATED CO-COMMISSIONING,SELBORNE ROAD MEDICAL CENTRE,14916076,"2,131.36"
Department of Health,NHS Sheffield CCG,30/11/2016,C&M-PMS Out of Hours Opt Outs,PRC DELEGATED CO-COMMISSIONING,SELBORNE ROAD MEDICAL CENTRE,14916076,-865.04
Department of Health,NHS Sheffield CCG,30/11/2016,C&M-PMS Prem Notional Rent,PRC DELEGATED CO-COMMISSIONING,SELBORNE ROAD MEDICAL CENTRE,14916076,"1,677.08"
Department of Health,NHS Sheffield CCG,30/11/2016,C&M-PMS Prem Rates,PRC DELEGATED CO-COMMISSIONING,SELBORNE ROAD MEDICAL CENTRE,14916076,592.9
Department of Health,NHS Sheffield CCG,30/11/2016,C&M-PMS QOF Aspiration,PRC DELEGATED CO-COMMISSIONING,SELBORNE ROAD MEDICAL CENTRE,14916076,"2,134.94"
Department of Health,NHS Sheffield CCG,30/11/2016,Cont Care-Physical Disab (<65),CHC ADULT FULLY FUNDED,SEVEN HILLS NURSING HOME,14923013,"39,759.37"
Department of Health,NHS Sheffield CCG,24/11/2016,C&M-GMS Cost of Drugs -Prescribing,LOCAL ENHANCED SERVICES,SHARROW LANE MEDICAL CENTRE,15123424,"1,587.77"
Department of Health,NHS Sheffield CCG,24/11/2016,C&M-GMS DES Minor Surgery,PRC DELEGATED CO-COMMISSIONING,SHARROW LANE MEDICAL CENTRE,15123424,200
Department of Health,NHS Sheffield CCG,24/11/2016,C&M-GMS DES UNPLANNED ADMISSIONS,PRC DELEGATED CO-COMMISSIONING,SHARROW LANE MEDICAL CENTRE,15123424,"2,986.83"
Department of Health,NHS Sheffield CCG,24/11/2016,C&M-GMS Global Sum,PRC DELEGATED CO-COMMISSIONING,SHARROW LANE MEDICAL CENTRE,15123424,"20,453.84"
Department of Health,NHS Sheffield CCG,24/11/2016,C&M-GMS MPIG Correction Factor,PRC DELEGATED CO-COMMISSIONING,SHARROW LANE MEDICAL CENTRE,15123424,"3,920.64"
Department of Health,NHS Sheffield CCG,24/11/2016,C&M-GMS Prem Notional Rent,PRC DELEGATED CO-COMMISSIONING,SHARROW LANE MEDICAL CENTRE,15123424,"2,658.33"
Department of Health,NHS Sheffield CCG,24/11/2016,C&M-GMS Prem Rates,PRC DELEGATED CO-COMMISSIONING,SHARROW LANE MEDICAL CENTRE,15123424,"1,192.80"
Department of Health,NHS Sheffield CCG,24/11/2016,C&M-GMS Prof Fees Prescribing,PRC DELEGATED CO-COMMISSIONING,SHARROW LANE MEDICAL CENTRE,15123424,452.48
Department of Health,NHS Sheffield CCG,24/11/2016,C&M-GMS QOF Aspiration,PRC DELEGATED CO-COMMISSIONING,SHARROW LANE MEDICAL CENTRE,15123424,"2,466.40"
Department of Health,NHS Sheffield CCG,30/11/2016,Hcare Srv Rec Fdtn Trust-CQUIN,ACUTE CHILDRENS SERVICES,SHEFFIELD CHILDRENS NHS FOUNDATION TRUST,14885085,"32,898.00"
Department of Health,NHS Sheffield CCG,30/11/2016,Hcare Srv Rec Fdtn Trust-CQUIN,COMMUNITY SERVICES,SHEFFIELD CHILDRENS NHS FOUNDATION TRUST,14885085,"4,084.00"
Department of Health,NHS Sheffield CCG,30/11/2016,Hcare Srv Rec Fdtn Trust-Contract Baseline,ACUTE CHILDRENS SERVICES,SHEFFIELD CHILDRENS NHS FOUNDATION TRUST,14885085,"223,874.82"
Department of Health,NHS Sheffield CCG,30/11/2016,Hcare Srv Rec Fdtn Trust-Contract Baseline,CHILD AND ADOLESCENT MENTAL HEALTH,SHEFFIELD CHILDRENS NHS FOUNDATION TRUST,14885085,"351,912.00"
Department of Health,NHS Sheffield CCG,30/11/2016,Hcare Srv Rec Fdtn Trust-Contract Baseline,COMMUNITY SERVICES,SHEFFIELD CHILDRENS NHS FOUNDATION TRUST,14885085,"326,732.00"
Department of Health,NHS Sheffield CCG,30/11/2016,Hcare Srv Rec Fdtn Trust-Contract Baseline,HIGH COST DRUGS,SHEFFIELD CHILDRENS NHS FOUNDATION TRUST,14885085,"58,683.00"
Department of Health,NHS Sheffield CCG,30/11/2016,Hcare Srv Rec Fdtn Trust-Contract Baseline,MENTAL HEALTH CONTRACTS,SHEFFIELD CHILDRENS NHS FOUNDATION TRUST,14885085,"3,332.00"
Department of Health,NHS Sheffield CCG,30/11/2016,Hcare Srv Rec Fdtn Trust-Contract Baseline,PLANNED CARE,SHEFFIELD CHILDRENS NHS FOUNDATION TRUST,14885085,"1,046,640.00"
Department of Health,NHS Sheffield CCG,30/11/2016,Hcare Srv Rec Fdtn Trust-Contract Baseline,SAFEGUARDING,SHEFFIELD CHILDRENS NHS FOUNDATION TRUST,14885085,"27,458.00"
Department of Health,NHS Sheffield CCG,30/11/2016,Hcare Srv Rec Fdtn Trust-Contract Baseline,URGENT CARE,SHEFFIELD CHILDRENS NHS FOUNDATION TRUST,14885085,"965,475.00"
Department of Health,NHS Sheffield CCG,30/11/2016,Hcare Srv Rec Fdtn Trust-Contract Baseline,ACUTE CHILDRENS SERVICES,SHEFFIELD CHILDRENS NHS FOUNDATION TRUST,14886110,"-30,041.00"
Department of Health,NHS Sheffield CCG,30/11/2016,Hcare Srv Rec Fdtn Trust-Contract Baseline,ACUTE CHILDRENS SERVICES,SHEFFIELD CHILDRENS NHS FOUNDATION TRUST,14987901,"-30,041.00"
Department of Health,NHS Sheffield CCG,30/11/2016,Clinical&Medical-Othe Public Sector,COMMUNITY SERVICES,SHEFFIELD CITY COUNCIL,14886215,"26,741.00"
Department of Health,NHS Sheffield CCG,30/11/2016,Clinical&Medical-Othe Public Sector,MENTAL HEALTH SERVICES - COLLABORATIVE COMMISSIONING,SHEFFIELD CITY COUNCIL,14886215,"16,919.00"
Department of Health,NHS Sheffield CCG,30/11/2016,Clinical&Medical-Othe Public Sector,REABLEMENT,SHEFFIELD CITY COUNCIL,14886215,"160,417.00"
Department of Health,NHS Sheffield CCG,30/11/2016,Clinical&Medical-Othe Public Sector,SAFEGUARDING,SHEFFIELD CITY COUNCIL,14886215,"26,425.00"
Department of Health,NHS Sheffield CCG,30/11/2016,Soc Care-Joint H&C Teams/Working,INTERMEDIATE CARE,SHEFFIELD CITY COUNCIL,14886215,"94,727.00"
Department of Health,NHS Sheffield CCG,30/11/2016,Soc Care-Learn Disab Servs,LEARNING DIFFICULTIES,SHEFFIELD CITY COUNCIL,14886215,"216,667.00"
Department of Health,NHS Sheffield CCG,30/11/2016,Soc Care-Other Soc Care,COMMUNITY SERVICES,SHEFFIELD CITY COUNCIL,14886215,"1,051,083.00"
Department of Health,NHS Sheffield CCG,30/11/2016,Soc Care-Re-ablement services,REABLEMENT,SHEFFIELD CITY COUNCIL,14886215,"56,721.00"
Department of Health,NHS Sheffield CCG,30/11/2016,Soc Care-Support Prim Care,COMMUNITY SERVICES,SHEFFIELD CITY COUNCIL,14886215,"41,667.00"
Department of Health,NHS Sheffield CCG,30/11/2016,Clinical&Medical-Othe Public Sector,COMMUNITY SERVICES,SHEFFIELD CITY COUNCIL,14892360,"26,741.00"
Department of Health,NHS Sheffield CCG,30/11/2016,Clinical&Medical-Othe Public Sector,MENTAL HEALTH SERVICES - COLLABORATIVE COMMISSIONING,SHEFFIELD CITY COUNCIL,14892360,"16,919.00"
Department of Health,NHS Sheffield CCG,30/11/2016,Clinical&Medical-Othe Public Sector,REABLEMENT,SHEFFIELD CITY COUNCIL,14892360,"160,417.00"
Department of Health,NHS Sheffield CCG,30/11/2016,Clinical&Medical-Othe Public Sector,SAFEGUARDING,SHEFFIELD CITY COUNCIL,14892360,"26,425.00"
Department of Health,NHS Sheffield CCG,30/11/2016,Soc Care-Joint H&C Teams/Working,INTERMEDIATE CARE,SHEFFIELD CITY COUNCIL,14892360,"94,727.00"
Department of Health,NHS Sheffield CCG,30/11/2016,Soc Care-Learn Disab Servs,LEARNING DIFFICULTIES,SHEFFIELD CITY COUNCIL,14892360,"216,667.00"
Department of Health,NHS Sheffield CCG,30/11/2016,Soc Care-Other Soc Care,COMMUNITY SERVICES,SHEFFIELD CITY COUNCIL,14892360,"1,051,083.00"
Department of Health,NHS Sheffield CCG,30/11/2016,Soc Care-Re-ablement services,REABLEMENT,SHEFFIELD CITY COUNCIL,14892360,"56,721.00"
Department of Health,NHS Sheffield CCG,30/11/2016,Soc Care-Support Prim Care,COMMUNITY SERVICES,SHEFFIELD CITY COUNCIL,14892360,"41,667.00"
Department of Health,NHS Sheffield CCG,30/11/2016,Cont Care-Physical Disab (65+),CHC ADULT FULLY FUNDED,SHEFFIELD CITY COUNCIL,15019209,"777,172.99"
Department of Health,NHS Sheffield CCG,30/11/2016,Cont Care-Physical Disab (65+),CHC ADULT FULLY FUNDED,SHEFFIELD CITY COUNCIL,15109994,"736,436.43"
Department of Health,NHS Sheffield CCG,30/11/2016,Cont Care-Foundation Trust,CHC ADULT FULLY FUNDED,SHEFFIELD HEALTH & SOCIAL CARE NHS FOUNDATION TRUST,14883974,"107,190.16"
Department of Health,NHS Sheffield CCG,30/11/2016,Cont Care-Foundation Trust,CHC ADULT FULLY FUNDED,SHEFFIELD HEALTH & SOCIAL CARE NHS FOUNDATION TRUST,14883990,"90,126.94"
Department of Health,NHS Sheffield CCG,30/11/2016,Cont Care-Foundation Trust,CHC ADULT FULLY FUNDED,SHEFFIELD HEALTH & SOCIAL CARE NHS FOUNDATION TRUST,14885056,"89,486.04"
Department of Health,NHS Sheffield CCG,30/11/2016,Cont Care-Foundation Trust,CHC ADULT FULLY FUNDED,SHEFFIELD HEALTH & SOCIAL CARE NHS FOUNDATION TRUST,14885719,"71,097.88"
Department of Health,NHS Sheffield CCG,30/11/2016,Cont Care-Foundation Trust,CHC ADULT FULLY FUNDED,SHEFFIELD HEALTH & SOCIAL CARE NHS FOUNDATION TRUST,14885731,"71,738.78"
Department of Health,NHS Sheffield CCG,30/11/2016,Cont Care-Foundation Trust,CHC ADULT FULLY FUNDED,SHEFFIELD HEALTH & SOCIAL CARE NHS FOUNDATION TRUST,14885744,"82,260.08"
Department of Health,NHS Sheffield CCG,30/11/2016,Cont Care-Foundation Trust,CHC ADULT FULLY FUNDED,SHEFFIELD HEALTH & SOCIAL CARE NHS FOUNDATION TRUST,14885755,"-107,190.16"
Department of Health,NHS Sheffield CCG,30/11/2016,Cont Care-Foundation Trust,CHC ADULT FULLY FUNDED,SHEFFIELD HEALTH & SOCIAL CARE NHS FOUNDATION TRUST,14885764,"-89,486.04"
Department of Health,NHS Sheffield CCG,30/11/2016,Cont Care-Foundation Trust,CHC ADULT FULLY FUNDED,SHEFFIELD HEALTH & SOCIAL CARE NHS FOUNDATION TRUST,14885777,"-90,126.94"
Department of Health,NHS Sheffield CCG,30/11/2016,C&M-APMS Contract Value,PRC DELEGATED CO-COMMISSIONING,SHEFFIELD HEALTH & SOCIAL CARE NHS FOUNDATION TRUST,14918083,"116,428.79"
Department of Health,NHS Sheffield CCG,30/11/2016,C&M-APMS DES Minor Surgery,PRC DELEGATED CO-COMMISSIONING,SHEFFIELD HEALTH & SOCIAL CARE NHS FOUNDATION TRUST,14918083,650
Department of Health,NHS Sheffield CCG,30/11/2016,C&M-APMS OOH Opt Outs,PRC DELEGATED CO-COMMISSIONING,SHEFFIELD HEALTH & SOCIAL CARE NHS FOUNDATION TRUST,14918083,59.75
Department of Health,NHS Sheffield CCG,30/11/2016,C&M-APMS Prem Other,PRC DELEGATED CO-COMMISSIONING,SHEFFIELD HEALTH & SOCIAL CARE NHS FOUNDATION TRUST,14918083,"119,904.72"
Department of Health,NHS Sheffield CCG,30/11/2016,C&M-PMS QOF Aspiration,PRC DELEGATED CO-COMMISSIONING,SHEFFIELD HEALTH & SOCIAL CARE NHS FOUNDATION TRUST,14918083,"12,212.65"
Department of Health,NHS Sheffield CCG,30/11/2016,C&M-APMS Contract Value,PRC DELEGATED CO-COMMISSIONING,SHEFFIELD HEALTH & SOCIAL CARE NHS FOUNDATION TRUST,14918090,"28,392.36"
Department of Health,NHS Sheffield CCG,30/11/2016,C&M-APMS DES Minor Surgery,PRC DELEGATED CO-COMMISSIONING,SHEFFIELD HEALTH & SOCIAL CARE NHS FOUNDATION TRUST,14918090,80
Department of Health,NHS Sheffield CCG,30/11/2016,C&M-APMS OOH Opt Outs,PRC DELEGATED CO-COMMISSIONING,SHEFFIELD HEALTH & SOCIAL CARE NHS FOUNDATION TRUST,14918090,62.51
Department of Health,NHS Sheffield CCG,30/11/2016,Hcare Srv Rec Fdtn Trust-Contract Baseline,LEARNING DIFFICULTIES,SHEFFIELD HEALTH & SOCIAL CARE NHS FOUNDATION TRUST,14987919,"41,487.00"
Department of Health,NHS Sheffield CCG,30/11/2016,Cont Care-Foundation Trust,CHC ADULT FULLY FUNDED,SHEFFIELD HEALTH & SOCIAL CARE NHS FOUNDATION TRUST,14987925,"235,291.00"
Department of Health,NHS Sheffield CCG,30/11/2016,Hcare Srv Rec Fdtn Trust-Contract Baseline,MENTAL HEALTH CONTRACTS,SHEFFIELD HEALTH & SOCIAL CARE NHS FOUNDATION TRUST,14987929,"6,064,874.34"
Department of Health,NHS Sheffield CCG,30/11/2016,C&M-PMS Baseline Adjustment,PRC DELEGATED CO-COMMISSIONING,SHEFFIELD MEDICAL CENTRE,14916086,"1,302.58"
Department of Health,NHS Sheffield CCG,30/11/2016,C&M-PMS Contract Value,PRC DELEGATED CO-COMMISSIONING,SHEFFIELD MEDICAL CENTRE,14916086,"25,436.97"
Department of Health,NHS Sheffield CCG,30/11/2016,C&M-PMS DES UNPLANNED ADMISSIONS,PRC DELEGATED CO-COMMISSIONING,SHEFFIELD MEDICAL CENTRE,14916086,"1,263.57"
Department of Health,NHS Sheffield CCG,30/11/2016,C&M-PMS Out of Hours Opt Outs,PRC DELEGATED CO-COMMISSIONING,SHEFFIELD MEDICAL CENTRE,14916086,-604
Department of Health,NHS Sheffield CCG,30/11/2016,C&M-PMS Prem Notional Rent,PRC DELEGATED CO-COMMISSIONING,SHEFFIELD MEDICAL CENTRE,14916086,"2,125.00"
Department of Health,NHS Sheffield CCG,30/11/2016,C&M-PMS Prem Rates,PRC DELEGATED CO-COMMISSIONING,SHEFFIELD MEDICAL CENTRE,14916086,859.1
Department of Health,NHS Sheffield CCG,30/11/2016,C&M-PMS QOF Aspiration,PRC DELEGATED CO-COMMISSIONING,SHEFFIELD MEDICAL CENTRE,14916086,"1,461.52"
Department of Health,NHS Sheffield CCG,30/11/2016,Hcare Srv Rec Fdtn Trust-Non Contract,ACUTE COMMISSIONING,SHEFFIELD TEACHING HOSPITALS NHS FOUNDATION TRUST,14883890,"26,266.00"
Department of Health,NHS Sheffield CCG,30/11/2016,Hcare Srv Rec Fdtn Trust-Non Contract,ACUTE COMMISSIONING,SHEFFIELD TEACHING HOSPITALS NHS FOUNDATION TRUST,14885180,"-26,266.00"
Department of Health,NHS Sheffield CCG,30/11/2016,Hcare Srv Rec Fdtn Trust-Non Contract,ACUTE COMMISSIONING,SHEFFIELD TEACHING HOSPITALS NHS FOUNDATION TRUST,14885381,"-25,611.00"
Department of Health,NHS Sheffield CCG,30/11/2016,Hcare Srv Rec Fdtn Trust-Non Contract,ACUTE COMMISSIONING,SHEFFIELD TEACHING HOSPITALS NHS FOUNDATION TRUST,14885456,"25,611.00"
Department of Health,NHS Sheffield CCG,30/11/2016,Hcare Srv Rec Fdtn Trust-Contract Baseline,ACUTE COMMISSIONING,SHEFFIELD TEACHING HOSPITALS NHS FOUNDATION TRUST,14885534,"328,759.00"
Department of Health,NHS Sheffield CCG,30/11/2016,Hcare Srv Rec Fdtn Trust-Contract Baseline,ACUTE COMMISSIONING,SHEFFIELD TEACHING HOSPITALS NHS FOUNDATION TRUST,14885546,"1,027,678.00"
Department of Health,NHS Sheffield CCG,30/11/2016,Hcare Srv Rec Fdtn Trust-Contract Baseline,ACUTE COMMISSIONING,SHEFFIELD TEACHING HOSPITALS NHS FOUNDATION TRUST,14885557,"3,399,509.00"
Department of Health,NHS Sheffield CCG,30/11/2016,Hcare Srv Rec Fdtn Trust-Contract Baseline,ACUTE COMMISSIONING,SHEFFIELD TEACHING HOSPITALS NHS FOUNDATION TRUST,14885566,"27,293,145.00"
Department of Health,NHS Sheffield CCG,24/11/2016,C&M-GMS Cost of Drugs -Prescribing,LOCAL ENHANCED SERVICES,SHIREGREEN MEDICAL CENTRE,15123430,"1,099.15"
Department of Health,NHS Sheffield CCG,24/11/2016,C&M-GMS DES Minor Surgery,PRC DELEGATED CO-COMMISSIONING,SHIREGREEN MEDICAL CENTRE,15123430,"2,280.00"
Department of Health,NHS Sheffield CCG,24/11/2016,C&M-GMS Global Sum,PRC DELEGATED CO-COMMISSIONING,SHIREGREEN MEDICAL CENTRE,15123430,"51,646.60"
Department of Health,NHS Sheffield CCG,24/11/2016,C&M-GMS MPIG Correction Factor,PRC DELEGATED CO-COMMISSIONING,SHIREGREEN MEDICAL CENTRE,15123430,907.38
Department of Health,NHS Sheffield CCG,24/11/2016,C&M-GMS Prem Cost Rent,PRC DELEGATED CO-COMMISSIONING,SHIREGREEN MEDICAL CENTRE,15123430,"1,792.33"
Department of Health,NHS Sheffield CCG,24/11/2016,C&M-GMS Prem Notional Rent,PRC DELEGATED CO-COMMISSIONING,SHIREGREEN MEDICAL CENTRE,15123430,"5,250.00"
Department of Health,NHS Sheffield CCG,24/11/2016,C&M-GMS Prem Rates,PRC DELEGATED CO-COMMISSIONING,SHIREGREEN MEDICAL CENTRE,15123430,"2,562.63"
Department of Health,NHS Sheffield CCG,24/11/2016,C&M-GMS Prem Water Rates,PRC DELEGATED CO-COMMISSIONING,SHIREGREEN MEDICAL CENTRE,15123430,117.02
Department of Health,NHS Sheffield CCG,24/11/2016,C&M-GMS Prof Fees Prescribing,PRC DELEGATED CO-COMMISSIONING,SHIREGREEN MEDICAL CENTRE,15123430,150.08
Department of Health,NHS Sheffield CCG,24/11/2016,C&M-GMS QOF Aspiration,PRC DELEGATED CO-COMMISSIONING,SHIREGREEN MEDICAL CENTRE,15123430,"5,994.92"
Department of Health,NHS Sheffield CCG,30/11/2016,C&M-PMS Contract Value,PRC DELEGATED CO-COMMISSIONING,SLOAN MEDICAL CENTRE,14916079,"-75,956.58"
Department of Health,NHS Sheffield CCG,30/11/2016,C&M-PMS GP Statutory Levy,PRC DELEGATED CO-COMMISSIONING,SLOAN MEDICAL CENTRE,14916079,-382.68
Department of Health,NHS Sheffield CCG,30/11/2016,C&M-PMS Out of Hours Opt Outs,PRC DELEGATED CO-COMMISSIONING,SLOAN MEDICAL CENTRE,14916079,-138.07
Department of Health,NHS Sheffield CCG,30/11/2016,C&M-PMS Voluntary Levy,PRC DELEGATED CO-COMMISSIONING,SLOAN MEDICAL CENTRE,14916079,-63.78
Department of Health,NHS Sheffield CCG,30/11/2016,ME - PMS TPS Added Years Adj EEs,PRC DELEGATED CO-COMMISSIONING,SLOAN MEDICAL CENTRE,14916079,-325.88
Department of Health,NHS Sheffield CCG,30/11/2016,C&M-PMS Baseline Adjustment,PRC DELEGATED CO-COMMISSIONING,SLOAN MEDICAL CENTRE,14916080,330.58
Department of Health,NHS Sheffield CCG,30/11/2016,C&M-PMS Contract Value,PRC DELEGATED CO-COMMISSIONING,SLOAN MEDICAL CENTRE,14916080,"160,650.13"
Department of Health,NHS Sheffield CCG,30/11/2016,C&M-PMS DES Minor Surgery,PRC DELEGATED CO-COMMISSIONING,SLOAN MEDICAL CENTRE,14916080,"3,410.00"
Department of Health,NHS Sheffield CCG,30/11/2016,C&M-PMS Out of Hours Opt Outs,PRC DELEGATED CO-COMMISSIONING,SLOAN MEDICAL CENTRE,14916080,"-4,015.17"
Department of Health,NHS Sheffield CCG,30/11/2016,C&M-PMS Prem Actual Rent,PRC DELEGATED CO-COMMISSIONING,SLOAN MEDICAL CENTRE,14916080,"15,943.33"
Department of Health,NHS Sheffield CCG,30/11/2016,C&M-PMS Prem Notional Rent,PRC DELEGATED CO-COMMISSIONING,SLOAN MEDICAL CENTRE,14916080,608.33
Department of Health,NHS Sheffield CCG,30/11/2016,C&M-PMS Prem Rates,PRC DELEGATED CO-COMMISSIONING,SLOAN MEDICAL CENTRE,14916080,"7,017.60"
Department of Health,NHS Sheffield CCG,30/11/2016,C&M-PMS QOF Aspiration,PRC DELEGATED CO-COMMISSIONING,SLOAN MEDICAL CENTRE,14916080,"9,653.87"
Department of Health,NHS Sheffield CCG,30/11/2016,C&M-PMS Contract Value,PRC DELEGATED CO-COMMISSIONING,SOTHALL MEDICAL CENTRE,14916081,"-66,679.18"
Department of Health,NHS Sheffield CCG,30/11/2016,C&M-PMS GP Statutory Levy,PRC DELEGATED CO-COMMISSIONING,SOTHALL MEDICAL CENTRE,14916081,-308.64
Department of Health,NHS Sheffield CCG,30/11/2016,C&M-PMS Out of Hours Opt Outs,PRC DELEGATED CO-COMMISSIONING,SOTHALL MEDICAL CENTRE,14916081,-60.94
Department of Health,NHS Sheffield CCG,30/11/2016,C&M-PMS Voluntary Levy,PRC DELEGATED CO-COMMISSIONING,SOTHALL MEDICAL CENTRE,14916081,-51.44
Department of Health,NHS Sheffield CCG,30/11/2016,ME - PMS TPS Added Years Adj EEs,PRC DELEGATED CO-COMMISSIONING,SOTHALL MEDICAL CENTRE,14916081,-249.98
Department of Health,NHS Sheffield CCG,30/11/2016,C&M-PMS Baseline Adjustment,PRC DELEGATED CO-COMMISSIONING,SOTHALL MEDICAL CENTRE,14916082,"6,927.58"
Department of Health,NHS Sheffield CCG,30/11/2016,C&M-PMS Contract Value,PRC DELEGATED CO-COMMISSIONING,SOTHALL MEDICAL CENTRE,14916082,"132,609.62"
Department of Health,NHS Sheffield CCG,30/11/2016,C&M-PMS DES Learn Dsblty Hlth Chk,PRC DELEGATED CO-COMMISSIONING,SOTHALL MEDICAL CENTRE,14916082,116
Department of Health,NHS Sheffield CCG,30/11/2016,C&M-PMS DES Minor Surgery,PRC DELEGATED CO-COMMISSIONING,SOTHALL MEDICAL CENTRE,14916082,"1,195.00"
Department of Health,NHS Sheffield CCG,30/11/2016,C&M-PMS DES UNPLANNED ADMISSIONS,PRC DELEGATED CO-COMMISSIONING,SOTHALL MEDICAL CENTRE,14916082,"7,937.93"
Department of Health,NHS Sheffield CCG,30/11/2016,C&M-PMS Out of Hours Opt Outs,PRC DELEGATED CO-COMMISSIONING,SOTHALL MEDICAL CENTRE,14916082,"-3,170.34"
Department of Health,NHS Sheffield CCG,30/11/2016,C&M-PMS Prem Healthcentre Rent,PRC DELEGATED CO-COMMISSIONING,SOTHALL MEDICAL CENTRE,14916082,"1,302.92"
Department of Health,NHS Sheffield CCG,30/11/2016,C&M-PMS Prem Notional Rent,PRC DELEGATED CO-COMMISSIONING,SOTHALL MEDICAL CENTRE,14916082,"5,116.67"
Department of Health,NHS Sheffield CCG,30/11/2016,C&M-PMS Prem Rates,PRC DELEGATED CO-COMMISSIONING,SOTHALL MEDICAL CENTRE,14916082,894.6
Department of Health,NHS Sheffield CCG,30/11/2016,C&M-PMS QOF Aspiration,PRC DELEGATED CO-COMMISSIONING,SOTHALL MEDICAL CENTRE,14916082,"8,054.95"
Department of Health,NHS Sheffield CCG,30/11/2016,Cont Care- Adult 100% Fully Funded,CHC ADULT FULLY FUNDED,SOUTH YORKSHIRE HOUSING ASSOCIATION LTD,14886704,"103,928.00"
Department of Health,NHS Sheffield CCG,30/11/2016,Clinical&Medical-Independent Sector,MENTAL HEALTH CONTRACTS,SOUTH YORKSHIRE HOUSING ASSOCIATION LTD,14886974,"34,435.00"
Department of Health,NHS Sheffield CCG,30/11/2016,Cont Care-Physical Disab (<65),CHC ADULT FULLY FUNDED,SOUTH YORKSHIRE HOUSING ASSOCIATION LTD,14925267,"66,421.00"
Department of Health,NHS Sheffield CCG,30/11/2016,C&M-PMS Baseline Adjustment,PRC DELEGATED CO-COMMISSIONING,SOUTHEY GREEN MEDICAL CENTRE,14916084,255.08
Department of Health,NHS Sheffield CCG,30/11/2016,C&M-PMS Contract Value,PRC DELEGATED CO-COMMISSIONING,SOUTHEY GREEN MEDICAL CENTRE,14916084,"46,027.33"
Department of Health,NHS Sheffield CCG,30/11/2016,C&M-PMS Out of Hours Opt Outs,PRC DELEGATED CO-COMMISSIONING,SOUTHEY GREEN MEDICAL CENTRE,14916084,"-1,147.60"
Department of Health,NHS Sheffield CCG,30/11/2016,C&M-PMS Prem Notional Rent,PRC DELEGATED CO-COMMISSIONING,SOUTHEY GREEN MEDICAL CENTRE,14916084,"3,362.50"
Department of Health,NHS Sheffield CCG,30/11/2016,C&M-PMS QOF Aspiration,PRC DELEGATED CO-COMMISSIONING,SOUTHEY GREEN MEDICAL CENTRE,14916084,"2,611.21"
Department of Health,NHS Sheffield CCG,24/11/2016,C&M-GMS DES Minor Surgery,PRC DELEGATED CO-COMMISSIONING,STANNINGTON MEDICAL CENTRE,15123434,295
Department of Health,NHS Sheffield CCG,24/11/2016,C&M-GMS Global Sum,PRC DELEGATED CO-COMMISSIONING,STANNINGTON MEDICAL CENTRE,15123434,"21,018.66"
Department of Health,NHS Sheffield CCG,24/11/2016,C&M-GMS Prem Notional Rent,PRC DELEGATED CO-COMMISSIONING,STANNINGTON MEDICAL CENTRE,15123434,"2,533.33"
Department of Health,NHS Sheffield CCG,24/11/2016,C&M-GMS Prem Rates,PRC DELEGATED CO-COMMISSIONING,STANNINGTON MEDICAL CENTRE,15123434,450.12
Department of Health,NHS Sheffield CCG,24/11/2016,C&M-GMS QOF Aspiration,PRC DELEGATED CO-COMMISSIONING,STANNINGTON MEDICAL CENTRE,15123434,"2,958.00"
Department of Health,NHS Sheffield CCG,24/11/2016,C&M-GMS Cost of Drugs -Prescribing,LOCAL ENHANCED SERVICES,STONECROFT MEDICAL CENTRE,15123432,"4,849.76"
Department of Health,NHS Sheffield CCG,24/11/2016,C&M-GMS DES Learn Dsblty Hlth Chk,PRC DELEGATED CO-COMMISSIONING,STONECROFT MEDICAL CENTRE,15123432,580
Department of Health,NHS Sheffield CCG,24/11/2016,C&M-GMS DES Minor Surgery,PRC DELEGATED CO-COMMISSIONING,STONECROFT MEDICAL CENTRE,15123432,"1,200.00"
Department of Health,NHS Sheffield CCG,24/11/2016,C&M-GMS Global Sum,PRC DELEGATED CO-COMMISSIONING,STONECROFT MEDICAL CENTRE,15123432,"27,811.09"
Department of Health,NHS Sheffield CCG,24/11/2016,C&M-GMS MPIG Correction Factor,PRC DELEGATED CO-COMMISSIONING,STONECROFT MEDICAL CENTRE,15123432,"1,236.50"
Department of Health,NHS Sheffield CCG,24/11/2016,C&M-GMS Prem Notional Rent,PRC DELEGATED CO-COMMISSIONING,STONECROFT MEDICAL CENTRE,15123432,"2,808.33"
Department of Health,NHS Sheffield CCG,24/11/2016,C&M-GMS Prem Rates,PRC DELEGATED CO-COMMISSIONING,STONECROFT MEDICAL CENTRE,15123432,969.15
Department of Health,NHS Sheffield CCG,24/11/2016,C&M-GMS Prof Fees Prescribing,PRC DELEGATED CO-COMMISSIONING,STONECROFT MEDICAL CENTRE,15123432,"1,448.77"
Department of Health,NHS Sheffield CCG,24/11/2016,C&M-GMS QOF Aspiration,PRC DELEGATED CO-COMMISSIONING,STONECROFT MEDICAL CENTRE,15123432,"3,829.15"
Department of Health,NHS Sheffield CCG,24/11/2016,C&M-GMS Cost of Drugs -Prescribing,LOCAL ENHANCED SERVICES,TOTLEY RISE MEDICAL CENTRE,15123436,"1,357.25"
Department of Health,NHS Sheffield CCG,24/11/2016,C&M-GMS DES Minor Surgery,PRC DELEGATED CO-COMMISSIONING,TOTLEY RISE MEDICAL CENTRE,15123436,330
Department of Health,NHS Sheffield CCG,24/11/2016,C&M-GMS Global Sum,PRC DELEGATED CO-COMMISSIONING,TOTLEY RISE MEDICAL CENTRE,15123436,"20,425.63"
Department of Health,NHS Sheffield CCG,24/11/2016,C&M-GMS MPIG Correction Factor,PRC DELEGATED CO-COMMISSIONING,TOTLEY RISE MEDICAL CENTRE,15123436,206.27
Department of Health,NHS Sheffield CCG,24/11/2016,C&M-GMS Prem Notional Rent,PRC DELEGATED CO-COMMISSIONING,TOTLEY RISE MEDICAL CENTRE,15123436,"1,491.67"
Department of Health,NHS Sheffield CCG,24/11/2016,C&M-GMS Prem Rates,PRC DELEGATED CO-COMMISSIONING,TOTLEY RISE MEDICAL CENTRE,15123436,131.8
Department of Health,NHS Sheffield CCG,24/11/2016,C&M-GMS Prof Fees Prescribing,PRC DELEGATED CO-COMMISSIONING,TOTLEY RISE MEDICAL CENTRE,15123436,342.72
Department of Health,NHS Sheffield CCG,24/11/2016,C&M-GMS QOF Aspiration,PRC DELEGATED CO-COMMISSIONING,TOTLEY RISE MEDICAL CENTRE,15123436,"2,064.44"
Department of Health,NHS Sheffield CCG,24/11/2016,C&M-GMS Cost of Drugs -Prescribing,LOCAL ENHANCED SERVICES,TRAMWAYS MEDICAL CENTRE,15123438,"5,967.57"
Department of Health,NHS Sheffield CCG,24/11/2016,C&M-GMS DES Minor Surgery,PRC DELEGATED CO-COMMISSIONING,TRAMWAYS MEDICAL CENTRE,15123438,"6,340.00"
Department of Health,NHS Sheffield CCG,24/11/2016,C&M-GMS DES UNPLANNED ADMISSIONS,PRC DELEGATED CO-COMMISSIONING,TRAMWAYS MEDICAL CENTRE,15123438,"6,558.09"
Department of Health,NHS Sheffield CCG,24/11/2016,C&M-GMS Global Sum,PRC DELEGATED CO-COMMISSIONING,TRAMWAYS MEDICAL CENTRE,15123438,"55,469.69"
Department of Health,NHS Sheffield CCG,24/11/2016,C&M-GMS Prem Cost Rent,PRC DELEGATED CO-COMMISSIONING,TRAMWAYS MEDICAL CENTRE,15123438,"4,012.75"
Department of Health,NHS Sheffield CCG,24/11/2016,C&M-GMS Prem Rates,PRC DELEGATED CO-COMMISSIONING,TRAMWAYS MEDICAL CENTRE,15123438,774.4
Department of Health,NHS Sheffield CCG,24/11/2016,C&M-GMS Prem Water Rates,PRC DELEGATED CO-COMMISSIONING,TRAMWAYS MEDICAL CENTRE,15123438,232.63
Department of Health,NHS Sheffield CCG,24/11/2016,C&M-GMS Prof Fees Prescribing,PRC DELEGATED CO-COMMISSIONING,TRAMWAYS MEDICAL CENTRE,15123438,"1,536.72"
Department of Health,NHS Sheffield CCG,24/11/2016,C&M-GMS QOF Aspiration,PRC DELEGATED CO-COMMISSIONING,TRAMWAYS MEDICAL CENTRE,15123438,"5,763.61"
Department of Health,NHS Sheffield CCG,30/11/2016,C&M-PMS Contract Value,PRC DELEGATED CO-COMMISSIONING,UNIVERSITY HEALTH SERVICE,14916087,"-124,234.04"
Department of Health,NHS Sheffield CCG,30/11/2016,C&M-PMS GP Statutory Levy,PRC DELEGATED CO-COMMISSIONING,UNIVERSITY HEALTH SERVICE,14916087,-967.35
Department of Health,NHS Sheffield CCG,30/11/2016,C&M-PMS Out of Hours Opt Outs,PRC DELEGATED CO-COMMISSIONING,UNIVERSITY HEALTH SERVICE,14916087,-93.87
Department of Health,NHS Sheffield CCG,30/11/2016,C&M-PMS Voluntary Levy,PRC DELEGATED CO-COMMISSIONING,UNIVERSITY HEALTH SERVICE,14916087,-161.23
Department of Health,NHS Sheffield CCG,30/11/2016,C&M-PMS Contract Value,PRC DELEGATED CO-COMMISSIONING,UNIVERSITY HEALTH SERVICE,14916088,"247,840.22"
Department of Health,NHS Sheffield CCG,30/11/2016,C&M-PMS DES Minor Surgery,PRC DELEGATED CO-COMMISSIONING,UNIVERSITY HEALTH SERVICE,14916088,340
Department of Health,NHS Sheffield CCG,30/11/2016,C&M-PMS Out of Hours Opt Outs,PRC DELEGATED CO-COMMISSIONING,UNIVERSITY HEALTH SERVICE,14916088,"-6,163.37"
Department of Health,NHS Sheffield CCG,30/11/2016,C&M-PMS Prem Notional Rent,PRC DELEGATED CO-COMMISSIONING,UNIVERSITY HEALTH SERVICE,14916088,"15,833.33"
Department of Health,NHS Sheffield CCG,30/11/2016,C&M-PMS QOF Aspiration,PRC DELEGATED CO-COMMISSIONING,UNIVERSITY HEALTH SERVICE,14916088,"2,932.96"
Department of Health,NHS Sheffield CCG,24/11/2016,C&M-GMS Cost of Drugs -Prescribing,LOCAL ENHANCED SERVICES,UPPERTHORPE MEDICAL CENTRE,15123441,"4,468.86"
Department of Health,NHS Sheffield CCG,24/11/2016,C&M-GMS DES Minor Surgery,PRC DELEGATED CO-COMMISSIONING,UPPERTHORPE MEDICAL CENTRE,15123441,"1,540.00"
Department of Health,NHS Sheffield CCG,24/11/2016,C&M-GMS DES UNPLANNED ADMISSIONS,PRC DELEGATED CO-COMMISSIONING,UPPERTHORPE MEDICAL CENTRE,15123441,"8,580.88"
Department of Health,NHS Sheffield CCG,24/11/2016,C&M-GMS Global Sum,PRC DELEGATED CO-COMMISSIONING,UPPERTHORPE MEDICAL CENTRE,15123441,"74,050.19"
Department of Health,NHS Sheffield CCG,24/11/2016,C&M-GMS MPIG Correction Factor,PRC DELEGATED CO-COMMISSIONING,UPPERTHORPE MEDICAL CENTRE,15123441,"2,651.47"
Department of Health,NHS Sheffield CCG,24/11/2016,C&M-GMS Prem Notional Rent,PRC DELEGATED CO-COMMISSIONING,UPPERTHORPE MEDICAL CENTRE,15123441,"2,497.83"
Department of Health,NHS Sheffield CCG,24/11/2016,C&M-GMS Prem Rates,PRC DELEGATED CO-COMMISSIONING,UPPERTHORPE MEDICAL CENTRE,15123441,"1,857.65"
Department of Health,NHS Sheffield CCG,24/11/2016,C&M-GMS Prof Fees Prescribing,PRC DELEGATED CO-COMMISSIONING,UPPERTHORPE MEDICAL CENTRE,15123441,"1,037.12"
Department of Health,NHS Sheffield CCG,24/11/2016,C&M-GMS QOF Aspiration,PRC DELEGATED CO-COMMISSIONING,UPPERTHORPE MEDICAL CENTRE,15123441,"8,458.19"
Department of Health,NHS Sheffield CCG,30/11/2016,C&M-PMS Contract Value,PRC DELEGATED CO-COMMISSIONING,UPWELL STREET SURGERY,14916089,"-37,263.21"
Department of Health,NHS Sheffield CCG,30/11/2016,C&M-PMS GP Statutory Levy,PRC DELEGATED CO-COMMISSIONING,UPWELL STREET SURGERY,14916089,-143.91
Department of Health,NHS Sheffield CCG,30/11/2016,C&M-PMS Out of Hours Opt Outs,PRC DELEGATED CO-COMMISSIONING,UPWELL STREET SURGERY,14916089,-25.34
Department of Health,NHS Sheffield CCG,30/11/2016,C&M-PMS Voluntary Levy,PRC DELEGATED CO-COMMISSIONING,UPWELL STREET SURGERY,14916089,-23.99
Department of Health,NHS Sheffield CCG,30/11/2016,ME - PMS TPS Added Years Adj EEs,PRC DELEGATED CO-COMMISSIONING,UPWELL STREET SURGERY,14916089,-710.01
Department of Health,NHS Sheffield CCG,30/11/2016,C&M-PMS Baseline Adjustment,PRC DELEGATED CO-COMMISSIONING,UPWELL STREET SURGERY,14916090,"4,009.00"
Department of Health,NHS Sheffield CCG,30/11/2016,C&M-PMS Contract Value,PRC DELEGATED CO-COMMISSIONING,UPWELL STREET SURGERY,14916090,"72,939.71"
Department of Health,NHS Sheffield CCG,30/11/2016,C&M-PMS DES Minor Surgery,PRC DELEGATED CO-COMMISSIONING,UPWELL STREET SURGERY,14916090,845
Department of Health,NHS Sheffield CCG,30/11/2016,C&M-PMS DES UNPLANNED ADMISSIONS,PRC DELEGATED CO-COMMISSIONING,UPWELL STREET SURGERY,14916090,"6,497.05"
Department of Health,NHS Sheffield CCG,30/11/2016,C&M-PMS Out of Hours Opt Outs,PRC DELEGATED CO-COMMISSIONING,UPWELL STREET SURGERY,14916090,"-1,715.02"
Department of Health,NHS Sheffield CCG,30/11/2016,C&M-PMS Prem Notional Rent,PRC DELEGATED CO-COMMISSIONING,UPWELL STREET SURGERY,14916090,"8,137.50"
Department of Health,NHS Sheffield CCG,30/11/2016,C&M-PMS Prem Rates,PRC DELEGATED CO-COMMISSIONING,UPWELL STREET SURGERY,14916090,"1,998.35"
Department of Health,NHS Sheffield CCG,30/11/2016,C&M-PMS QOF Aspiration,PRC DELEGATED CO-COMMISSIONING,UPWELL STREET SURGERY,14916090,"4,428.32"
Department of Health,NHS Sheffield CCG,30/11/2016,C&M-PMS Contract Value,PRC DELEGATED CO-COMMISSIONING,VALLEY MEDICAL CENTRE,14916091,"-64,140.88"
Department of Health,NHS Sheffield CCG,30/11/2016,C&M-PMS GP Statutory Levy,PRC DELEGATED CO-COMMISSIONING,VALLEY MEDICAL CENTRE,14916091,-285.72
Department of Health,NHS Sheffield CCG,30/11/2016,C&M-PMS Out of Hours Opt Outs,PRC DELEGATED CO-COMMISSIONING,VALLEY MEDICAL CENTRE,14916091,-49.44
Department of Health,NHS Sheffield CCG,30/11/2016,C&M-PMS Voluntary Levy,PRC DELEGATED CO-COMMISSIONING,VALLEY MEDICAL CENTRE,14916091,-47.62
Department of Health,NHS Sheffield CCG,30/11/2016,ME - PMS TPS Added Years Adj EEs,PRC DELEGATED CO-COMMISSIONING,VALLEY MEDICAL CENTRE,14916091,-237.26
Department of Health,NHS Sheffield CCG,30/11/2016,C&M-PMS Baseline Adjustment,PRC DELEGATED CO-COMMISSIONING,VALLEY MEDICAL CENTRE,14916092,542.25
Department of Health,NHS Sheffield CCG,30/11/2016,C&M-PMS Contract Value,PRC DELEGATED CO-COMMISSIONING,VALLEY MEDICAL CENTRE,14916092,"133,902.27"
Department of Health,NHS Sheffield CCG,30/11/2016,C&M-PMS DES Learn Dsblty Hlth Chk,PRC DELEGATED CO-COMMISSIONING,VALLEY MEDICAL CENTRE,14916092,232
Department of Health,NHS Sheffield CCG,30/11/2016,C&M-PMS DES Minor Surgery,PRC DELEGATED CO-COMMISSIONING,VALLEY MEDICAL CENTRE,14916092,"2,745.00"
Department of Health,NHS Sheffield CCG,30/11/2016,C&M-PMS DES UNPLANNED ADMISSIONS,PRC DELEGATED CO-COMMISSIONING,VALLEY MEDICAL CENTRE,14916092,"7,308.07"
Department of Health,NHS Sheffield CCG,30/11/2016,C&M-PMS Out of Hours Opt Outs,PRC DELEGATED CO-COMMISSIONING,VALLEY MEDICAL CENTRE,14916092,"-3,364.05"
Department of Health,NHS Sheffield CCG,30/11/2016,C&M-PMS Prem Rates,PRC DELEGATED CO-COMMISSIONING,VALLEY MEDICAL CENTRE,14916092,969.15
Department of Health,NHS Sheffield CCG,30/11/2016,C&M-PMS QOF Aspiration,PRC DELEGATED CO-COMMISSIONING,VALLEY MEDICAL CENTRE,14916092,"8,284.48"
Department of Health,NHS Sheffield CCG,24/11/2016,C&M-GMS Cost of Drugs -Prescribing,LOCAL ENHANCED SERVICES,WALKLEY HOUSE MEDICAL CENTRE,15123447,"2,311.84"
Department of Health,NHS Sheffield CCG,24/11/2016,C&M-GMS DES Minor Surgery,PRC DELEGATED CO-COMMISSIONING,WALKLEY HOUSE MEDICAL CENTRE,15123447,"1,580.00"
Department of Health,NHS Sheffield CCG,24/11/2016,C&M-GMS Global Sum,PRC DELEGATED CO-COMMISSIONING,WALKLEY HOUSE MEDICAL CENTRE,15123447,"72,758.39"
Department of Health,NHS Sheffield CCG,24/11/2016,C&M-GMS Prem Notional Rent,PRC DELEGATED CO-COMMISSIONING,WALKLEY HOUSE MEDICAL CENTRE,15123447,"5,581.34"
Department of Health,NHS Sheffield CCG,24/11/2016,C&M-GMS Prem Rates,PRC DELEGATED CO-COMMISSIONING,WALKLEY HOUSE MEDICAL CENTRE,15123447,"1,217.65"
Department of Health,NHS Sheffield CCG,24/11/2016,C&M-GMS Prof Fees Prescribing,PRC DELEGATED CO-COMMISSIONING,WALKLEY HOUSE MEDICAL CENTRE,15123447,512.96
Department of Health,NHS Sheffield CCG,24/11/2016,C&M-GMS QOF Aspiration,PRC DELEGATED CO-COMMISSIONING,WALKLEY HOUSE MEDICAL CENTRE,15123447,"8,133.06"
Department of Health,NHS Sheffield CCG,30/11/2016,C&M-GMS Cost of Drugs -Prescribing,LOCAL ENHANCED SERVICES,WHITE HOUSE SURGERY SHEFFIELD,15142476,"8,919.84"
Department of Health,NHS Sheffield CCG,30/11/2016,C&M-GMS DES Minor Surgery,PRC DELEGATED CO-COMMISSIONING,WHITE HOUSE SURGERY SHEFFIELD,15142476,325
Department of Health,NHS Sheffield CCG,30/11/2016,C&M-GMS Global Sum,PRC DELEGATED CO-COMMISSIONING,WHITE HOUSE SURGERY SHEFFIELD,15142476,"44,578.24"
Department of Health,NHS Sheffield CCG,30/11/2016,C&M-GMS MPIG Correction Factor,PRC DELEGATED CO-COMMISSIONING,WHITE HOUSE SURGERY SHEFFIELD,15142476,"2,782.59"
Department of Health,NHS Sheffield CCG,30/11/2016,C&M-GMS Prem Notional Rent,PRC DELEGATED CO-COMMISSIONING,WHITE HOUSE SURGERY SHEFFIELD,15142476,"9,104.17"
Department of Health,NHS Sheffield CCG,30/11/2016,C&M-GMS Prem Rates,PRC DELEGATED CO-COMMISSIONING,WHITE HOUSE SURGERY SHEFFIELD,15142476,"1,801.62"
Department of Health,NHS Sheffield CCG,30/11/2016,C&M-GMS Prof Fees Prescribing,PRC DELEGATED CO-COMMISSIONING,WHITE HOUSE SURGERY SHEFFIELD,15142476,"2,656.02"
Department of Health,NHS Sheffield CCG,30/11/2016,C&M-GMS QOF Aspiration,PRC DELEGATED CO-COMMISSIONING,WHITE HOUSE SURGERY SHEFFIELD,15142476,"5,341.68"
Department of Health,NHS Sheffield CCG,30/11/2016,ME - GMS GP Prior Year ERs,PRC DELEGATED CO-COMMISSIONING,WHITE HOUSE SURGERY SHEFFIELD,15142476,770.3
Department of Health,NHS Sheffield CCG,30/11/2016,ME-GMS GP Prior Year EEs,PRC DELEGATED CO-COMMISSIONING,WHITE HOUSE SURGERY SHEFFIELD,15142476,500.96
Department of Health,NHS Sheffield CCG,30/11/2016,Cont Care-Physical Disab (<65),CHC ADULT FULLY FUNDED,WILLOWBECK HEALTH CARE LTD,14925225,"211,173.54"
Department of Health,NHS Sheffield CCG,30/11/2016,C&M-PMS Contract Value,PRC DELEGATED CO-COMMISSIONING,WINCOBANK MEDICAL CENTRE,14916097,"-48,960.67"
Department of Health,NHS Sheffield CCG,30/11/2016,C&M-PMS GP Statutory Levy,PRC DELEGATED CO-COMMISSIONING,WINCOBANK MEDICAL CENTRE,14916097,-222.03
Department of Health,NHS Sheffield CCG,30/11/2016,C&M-PMS Out of Hours Opt Outs,PRC DELEGATED CO-COMMISSIONING,WINCOBANK MEDICAL CENTRE,14916097,-109.07
Department of Health,NHS Sheffield CCG,30/11/2016,C&M-PMS Voluntary Levy,PRC DELEGATED CO-COMMISSIONING,WINCOBANK MEDICAL CENTRE,14916097,-37.01
Department of Health,NHS Sheffield CCG,30/11/2016,C&M-PMS Baseline Adjustment,PRC DELEGATED CO-COMMISSIONING,WINCOBANK MEDICAL CENTRE,14916098,19.92
Department of Health,NHS Sheffield CCG,30/11/2016,C&M-PMS Contract Value,PRC DELEGATED CO-COMMISSIONING,WINCOBANK MEDICAL CENTRE,14916098,"104,145.39"
Department of Health,NHS Sheffield CCG,30/11/2016,C&M-PMS DES Minor Surgery,PRC DELEGATED CO-COMMISSIONING,WINCOBANK MEDICAL CENTRE,14916098,"1,240.00"
Department of Health,NHS Sheffield CCG,30/11/2016,C&M-PMS Out of Hours Opt Outs,PRC DELEGATED CO-COMMISSIONING,WINCOBANK MEDICAL CENTRE,14916098,"-2,593.58"
Department of Health,NHS Sheffield CCG,30/11/2016,C&M-PMS Prem Healthcentre Rent,PRC DELEGATED CO-COMMISSIONING,WINCOBANK MEDICAL CENTRE,14916098,"40,840.62"
Department of Health,NHS Sheffield CCG,30/11/2016,C&M-PMS QOF Aspiration,PRC DELEGATED CO-COMMISSIONING,WINCOBANK MEDICAL CENTRE,14916098,"6,279.11"
Department of Health,NHS Sheffield CCG,30/11/2016,C&M-PMS Contract Value,PRC DELEGATED CO-COMMISSIONING,WOODHOUSE HEALTH CENTRE,14916093,"-89,176.40"
Department of Health,NHS Sheffield CCG,30/11/2016,C&M-PMS GP Statutory Levy,PRC DELEGATED CO-COMMISSIONING,WOODHOUSE HEALTH CENTRE,14916093,-368.82
Department of Health,NHS Sheffield CCG,30/11/2016,C&M-PMS Out of Hours Opt Outs,PRC DELEGATED CO-COMMISSIONING,WOODHOUSE HEALTH CENTRE,14916093,-64.6
Department of Health,NHS Sheffield CCG,30/11/2016,C&M-PMS Voluntary Levy,PRC DELEGATED CO-COMMISSIONING,WOODHOUSE HEALTH CENTRE,14916093,-61.47
Department of Health,NHS Sheffield CCG,30/11/2016,ME - PMS TPS Added Years Adj EEs,PRC DELEGATED CO-COMMISSIONING,WOODHOUSE HEALTH CENTRE,14916093,-826.25
Department of Health,NHS Sheffield CCG,30/11/2016,C&M-PMS Baseline Adjustment,PRC DELEGATED CO-COMMISSIONING,WOODHOUSE HEALTH CENTRE,14916094,"5,552.58"
Department of Health,NHS Sheffield CCG,30/11/2016,C&M-PMS Contract Value,PRC DELEGATED CO-COMMISSIONING,WOODHOUSE HEALTH CENTRE,14916094,"180,396.68"
Department of Health,NHS Sheffield CCG,30/11/2016,C&M-PMS DES Learn Dsblty Hlth Chk,PRC DELEGATED CO-COMMISSIONING,WOODHOUSE HEALTH CENTRE,14916094,"2,668.00"
Department of Health,NHS Sheffield CCG,30/11/2016,C&M-PMS DES Minor Surgery,PRC DELEGATED CO-COMMISSIONING,WOODHOUSE HEALTH CENTRE,14916094,"3,080.00"
Department of Health,NHS Sheffield CCG,30/11/2016,C&M-PMS DES UNPLANNED ADMISSIONS,PRC DELEGATED CO-COMMISSIONING,WOODHOUSE HEALTH CENTRE,14916094,"9,527.98"
Department of Health,NHS Sheffield CCG,30/11/2016,C&M-PMS Out of Hours Opt Outs,PRC DELEGATED CO-COMMISSIONING,WOODHOUSE HEALTH CENTRE,14916094,"-4,394.46"
Department of Health,NHS Sheffield CCG,30/11/2016,C&M-PMS Prem Notional Rent,PRC DELEGATED CO-COMMISSIONING,WOODHOUSE HEALTH CENTRE,14916094,"6,338.59"
Department of Health,NHS Sheffield CCG,30/11/2016,C&M-PMS Prem Rates,PRC DELEGATED CO-COMMISSIONING,WOODHOUSE HEALTH CENTRE,14916094,"1,080.97"
Department of Health,NHS Sheffield CCG,30/11/2016,C&M-PMS Prem Water Rates,PRC DELEGATED CO-COMMISSIONING,WOODHOUSE HEALTH CENTRE,14916094,382.9
Department of Health,NHS Sheffield CCG,30/11/2016,C&M-PMS QOF Aspiration,PRC DELEGATED CO-COMMISSIONING,WOODHOUSE HEALTH CENTRE,14916094,"13,394.35"
Department of Health,NHS Sheffield CCG,30/11/2016,C&M-PMS Contract Value,PRC DELEGATED CO-COMMISSIONING,WOODSEATS MEDICAL CENTRE,14916095,"-55,148.92"
Department of Health,NHS Sheffield CCG,30/11/2016,C&M-PMS GP Statutory Levy,PRC DELEGATED CO-COMMISSIONING,WOODSEATS MEDICAL CENTRE,14916095,-270.39
Department of Health,NHS Sheffield CCG,30/11/2016,C&M-PMS Out of Hours Opt Outs,PRC DELEGATED CO-COMMISSIONING,WOODSEATS MEDICAL CENTRE,14916095,-71.74
Department of Health,NHS Sheffield CCG,30/11/2016,C&M-PMS Voluntary Levy,PRC DELEGATED CO-COMMISSIONING,WOODSEATS MEDICAL CENTRE,14916095,-45.07
Department of Health,NHS Sheffield CCG,30/11/2016,ME - PMS TPS Added Years Adj EEs,PRC DELEGATED CO-COMMISSIONING,WOODSEATS MEDICAL CENTRE,14916095,-251.33
Department of Health,NHS Sheffield CCG,30/11/2016,C&M-PMS Baseline Adjustment,PRC DELEGATED CO-COMMISSIONING,WOODSEATS MEDICAL CENTRE,14916096,794.17
Department of Health,NHS Sheffield CCG,30/11/2016,C&M-PMS Contract Value,PRC DELEGATED CO-COMMISSIONING,WOODSEATS MEDICAL CENTRE,14916096,"115,485.03"
Department of Health,NHS Sheffield CCG,30/11/2016,C&M-PMS DES Minor Surgery,PRC DELEGATED CO-COMMISSIONING,WOODSEATS MEDICAL CENTRE,14916096,"4,760.00"
Department of Health,NHS Sheffield CCG,30/11/2016,C&M-PMS DES UNPLANNED ADMISSIONS,PRC DELEGATED CO-COMMISSIONING,WOODSEATS MEDICAL CENTRE,14916096,"6,852.23"
Department of Health,NHS Sheffield CCG,30/11/2016,C&M-PMS Out of Hours Opt Outs,PRC DELEGATED CO-COMMISSIONING,WOODSEATS MEDICAL CENTRE,14916096,"-2,886.33"
Department of Health,NHS Sheffield CCG,30/11/2016,C&M-PMS Prem Notional Rent,PRC DELEGATED CO-COMMISSIONING,WOODSEATS MEDICAL CENTRE,14916096,"3,578.92"
Department of Health,NHS Sheffield CCG,30/11/2016,C&M-PMS Prem Rates,PRC DELEGATED CO-COMMISSIONING,WOODSEATS MEDICAL CENTRE,14916096,"1,379.18"
Department of Health,NHS Sheffield CCG,30/11/2016,C&M-PMS QOF Aspiration,PRC DELEGATED CO-COMMISSIONING,WOODSEATS MEDICAL CENTRE,14916096,"7,370.55"
Department of Health,NHS Sheffield CCG,30/11/2016,Hcare Srv Rec NHS Trust-Contract Baseline,AMBULANCE SERVICES,YORKSHIRE AMBULANCE SERVICE NHS TRUST,14885981,"122,502.08"
Department of Health,NHS Sheffield CCG,30/11/2016,Hcare Srv Rec NHS Trust-CQUIN,AMBULANCE SERVICES,YORKSHIRE AMBULANCE SERVICE NHS TRUST,14886283,"30,163.00"
Department of Health,NHS Sheffield CCG,30/11/2016,Hcare Srv Rec NHS Trust-Contract Baseline,NHS 111,YORKSHIRE AMBULANCE SERVICE NHS TRUST,14886297,"89,944.26"
Department of Health,NHS Sheffield CCG,30/11/2016,Hcare Srv Rec NHS Trust-Contract Baseline,AMBULANCE SERVICES,YORKSHIRE AMBULANCE SERVICE NHS TRUST,14886304,"1,393,177.00"
Department of Health,NHS Sheffield CCG,30/11/2016,Hcare Srv Rec NHS Trust-Contract Baseline,PATIENT TRANSPORT,YORKSHIRE AMBULANCE SERVICE NHS TRUST,14886312,"170,931.00"
,,,,,,,"57,169,406.77"
